Cogmind - Beta 16.1 @@@ ROGUE MODE // 2026.01.03 @ 20:46:17 Player: Infomantis Result: Escaped! Performance ------------- Evolutions (9) 4500 Regions Visited (31) 6200 Robots Destroyed (461) 2305 Value Destroyed (24280) 24280 Prototype IDs (71) 1420 Alien Tech Used (3) 600 Bonus (16424) 16424 TOTAL SCORE: 55729 Bonus ------- High Alert Combat Kills 3417 Follower Combat Kills 1270 Entered Garrisons 600 Entered DSFs 1000 Aligned with FarCom 300 Acquired ECA 300 Met Zhirov 300 Met Warlord at Base 500 MAIN.C Attacked Warlord 500 Warlord Defense Kills 3938 Met Warlord at Research 2000 Win 3000 Friendly Fire -701 Cogmind --------- Core Integrity 1255/1600 Matter 66/300 Energy 692/700 System Corruption 6% Temperature Cool (4) Movement Walking (176) Ox1 Location To Epsilon Eridani Parts ------- > --- POWER (3) -------- Vortex Chain Reactor > --- PROPULSION (6) --- Improved Thunder Leg Enhanced Biometal Leg Centrium Leg > --- UTILITY (12) ----- High-capacity Storage Unit Experimental Sensor Array Advanced Signal Interpreter Advanced Terrain Scanner Advanced Terrain Scan Processor Experimental Targeting Computer Experimental Core Analyzer Advanced Transmission Jammer Advanced Hacking Suite > --- WEAPON (4) ------- 8R-AWN's Boregun Compact Tesla Bomb Launcher Makeshift Laser Shovel > --- INVENTORY (20) --- Quantum Reactor Light Quantum Reactor Advanced Heat Sink Experimental Energy Well (600) Seismic Detector Core Analyzer Improved Focal Shield Improved System Shield Transdimensional Reconstructor Core Reset Matrix Enhanced Hardcell Cannon Enhanced Gamma Bomb Array Point Singularity Launcher Peak State ------------ > --- POWER ------------ Quantum Reactor Vortex Chain Reactor > --- PROPULSION ------- Enhanced Biometal Leg Enhanced Biometal Leg Enhanced Biometal Leg Enhanced Biometal Leg Heavy Shield Leg > --- UTILITY ---------- Advanced Cryofiber Web High-capacity Storage Unit Experimental Sensor Array Advanced Signal Interpreter Advanced Terrain Scanner Advanced Terrain Scan Processor Experimental Targeting Computer Experimental Core Analyzer Advanced Transmission Jammer Experimental Reaction Control System Phase Redirector Advanced Hacking Suite > --- WEAPON ----------- Enhanced Quantum Rifle Enhanced Quantum Rifle Enhanced Quantum Rifle 8R-AWN's Boregun > --- INVENTORY -------- Quantum Reactor Light Quantum Reactor Improved Thunder Leg Advanced Heat Sink Experimental Energy Well Seismic Detector Advanced Phase Shifter Improved System Shield Assault Drone Bay Transdimensional Reconstructor Core Reset Matrix Enhanced Hardcell Cannon Compact Tesla Bomb Launcher Enhanced Gamma Bomb Array Point Singularity Launcher Makeshift Laser Shovel [Rating: 218] Favorites ----------- Power Light Particle Reactor Engine Improved Deuterium Engine Power Core Micro Fission Core Reactor Light Particle Reactor Propulsion Advanced Myomer Leg Treads Light Treads Leg Advanced Myomer Leg Wheel Compact Wheel Hover Unit Antigrav System Flight Unit VTOL Module Utility High-capacity Storage Unit Device Advanced Heat Sink Storage High-capacity Storage Unit Processor Advanced Targeting Computer Hackware Hacking Suite Protection Hardened Medium Armor Plating Artifact Phase Redirector Weapon Improved Heavy Laser Energy Gun Improved Heavy Laser Energy Cannon YOLO Cannon Ballistic Gun Assault Rifle Ballistic Cannon Flak Cannon Launcher Compact Tesla Bomb Launcher Special Weapon Makeshift Laser Shovel Impact Weapon Flail Slashing Weapon Power Sword Special Melee Weapon Advanced Datajack Build | -11 -10 -10 -9 -9 -9 -8 -8 -8 -7 -7 -7 -7 -6 -6 -5 -5 -5 -5 -4 -4 -4 -4 -4 -4 -4 -3 -3 -3 -2 -2 -1 ------- Run | Yrd Mat Min Mat Min Exi Min Mat Gar Fac Gar Fac DSF Fac Gar Fac Upp Upp Zhi Pro Fac Was Fac Upp Upp War Pro Res DSF Res Qua Acc Slots Evolved 18 | . . . 2 . . . 2 . 2 . . . 2 . 2 . . . . 2 . . . . . . 2 . 2 . 2 Power 2 | . . . . . . . . . . . . . . . 1 . . . . . . . . . . . . . . . 1 Propulsion 4 | . . . . . . . 2 . . . . . 1 . . . . . . . . . . . . . 1 . . . . Utility 10 | . . . 1 . . . . . 2 . . . 1 . 1 . . . . 1 . . . . . . 1 . 2 . 1 Weapon 2 | . . . 1 . . . . . . . . . . . . . . . . 1 . . . . . . . . . . . Parts Attached 313 | 7 5 . 10 2 16 8 17 14 10 30 3 15 12 17 6 5 3 7 14 18 7 8 4 2 19 5 2 9 25 5 8 Power 39 | 1 2 . . 1 3 3 1 2 2 2 . 2 . 1 1 1 . . 3 . 3 . . . 4 1 . . 4 1 1 Engine 14 | 1 2 . . 1 1 3 . . 2 2 . 2 . . . . . . . . . . . . . . . . . . . Core 10 | . . . . . 2 . 1 2 . . . . . . 1 1 . . 2 . 1 . . . . . . . . . . Reactor 15 | . . . . . . . . . . . . . . 1 . . . . 1 . 2 . . . 4 1 . . 4 1 1 Propulsion 83 | 2 1 . 2 . 5 . 7 6 . 12 . 2 4 7 1 . 1 1 3 4 . 3 2 . 6 2 1 2 6 1 2 Treads 17 | 2 1 . 1 . 2 . . . . 6 . 2 1 . . . . . 1 1 . . . . . . . . . . . Leg 58 | . . . . . 2 . 7 6 . 5 . . 3 6 1 . 1 . . 3 . 3 2 . 5 2 1 2 6 1 2 Wheel 1 | . . . . . 1 . . . . . . . . . . . . . . . . . . . . . . . . . . Hover 3 | . . . . . . . . . . . . . . . . . . . 2 . . . . . 1 . . . . . . Flight 4 | . . . 1 . . . . . . 1 . . . 1 . . . 1 . . . . . . . . . . . . . Utility 104 | 2 1 . 4 1 2 2 2 2 3 6 2 5 7 5 4 2 1 4 4 5 2 3 2 2 7 . 1 3 12 3 5 Device 47 | 1 . . 2 1 1 1 . . 2 . 1 3 2 3 2 1 1 3 2 3 1 2 2 1 3 . . 1 4 1 3 Storage 8 | 1 1 . 1 . . . 1 . . 1 . . . . . 1 . . . . . . . . 1 . . 1 . . . Processor 11 | . . . 1 . . . . . 1 . 1 . . 1 . . . . 1 1 . . . . 1 . . . 2 1 1 Hackware 11 | . . . . . . . . 1 . . . 1 5 . 1 . . . . 1 . 1 . . . . . . . . 1 Protection 26 | . . . . . 1 1 1 1 . 5 . 1 . 1 1 . . 1 1 . 1 . . 1 2 . 1 1 6 . . Artifact 1 | . . . . . . . . . . . . . . . . . . . . . . . . . . . . . . 1 . Weapon 87 | 2 1 . 4 . 6 3 7 4 5 10 1 6 1 4 . 2 1 2 4 9 2 2 . . 2 2 . 4 3 . . Energy Gun 38 | 1 . . 2 . . 1 1 1 2 5 . 5 1 2 . 1 . . 3 6 1 . . . 1 1 . 4 . . . Energy Cannon 2 | . . . . . 1 . . . . . . . . . . . . . . 1 . . . . . . . . . . . Ballistic Gun 27 | 1 1 . . . 5 1 5 1 1 3 1 1 . 1 . . . . 1 2 . . . . 1 1 . . 1 . . Ballistic Cannon 5 | . . . . . . . 1 . 2 1 . . . . . . . 1 . . . . . . . . . . . . . Launcher 7 | . . . . . . 1 . 1 . . . . . 1 . . . . . . 1 2 . . . . . . 1 . . Special Weapon 2 | . . . 1 . . . . . . . . . . . . . 1 . . . . . . . . . . . . . . Impact Weapon 2 | . . . 1 . . . . . . . . . . . . 1 . . . . . . . . . . . . . . . Slashing Weapon 3 | . . . . . . . . 1 . 1 . . . . . . . . . . . . . . . . . . 1 . . Piercing Weapon . | . . . . . . . . . . . . . . . . . . . . . . . . . . . . . . . . Special Melee Weapon 1 | . . . . . . . . . . . . . . . . . . 1 . . . . . . . . . . . . . Unidentified Prototypes 31 | . . . 2 1 2 . 2 . 2 . . . 1 . . 1 1 4 . . 2 . . . 4 . . . 7 1 1 Corrupted Parts 5 | . . . . . . . . . . 3 . . . . . . . . 1 . . 1 . . . . . . . . . System Corruption 25 | . . . . . . . . . . 10 . . . . . . . . 10 . . 5 . . . . . . . . . Parts Lost 107 | . 1 . . . 13 5 2 13 2 13 . 6 1 7 . . 2 . 13 3 . . . . 7 . . 1 4 2 12 Power 14 | . . . . . 3 2 1 1 . 1 . 1 . . . . . . 2 . . . . . 2 . . . 1 . . Propulsion 38 | . 1 . . . 6 . . 7 2 5 . 2 1 3 . . . . 5 1 . . . . 1 . . . . . 4 Utility 30 | . . . . . 1 1 . 2 . 3 . 3 . 3 . . 1 . 3 . . . . . 3 . . 1 3 1 5 Weapon 25 | . . . . . 3 2 1 3 . 4 . . . 1 . . 1 . 3 2 . . . . 1 . . . . 1 3 Highest Loss Streak 9 | . 1 . . . 5 4 1 5 1 5 . 4 1 4 . . 2 . 4 2 . . . . 6 . . 1 2 1 9 To Critical Strikes 3 | . . . . . 3 . . . . . . . . . . . . . . . . . . . . . . . . . . Average Backups 17 | 4 10 11 14 16 15 14 18 16 19 19 20 19 19 19 20 19 19 19 19 19 20 19 19 18 18 18 18 17 16 14 13 Power 1 | . 1 2 1 1 . . 1 1 1 1 2 1 1 1 2 2 2 2 1 2 1 1 1 1 1 1 1 1 1 2 1 Propulsion 2 | . 1 2 3 4 3 3 3 2 1 . 1 1 4 3 4 3 3 2 1 . . . . . . 2 2 . 1 . . Utility 8 | 1 5 4 5 6 6 6 7 6 9 8 9 8 7 8 9 8 8 8 9 10 11 11 12 11 10 9 9 9 8 6 5 Weapon 4 | 1 2 2 4 5 5 3 6 5 5 7 7 7 6 5 5 5 5 4 3 4 3 3 3 3 3 3 3 3 3 4 3 Tool/Special . | . . . . . . . . . . . . . . . . . . . . . . . . . . . . . . . . Unused Backups 42 | . 1 4 5 2 1 . 4 1 1 . . 2 3 1 . 1 . . . 1 2 1 . . 3 . . 1 . 1 7 Power 7 | . 1 . 1 . . . 1 1 . . . . . 1 . . . . . . . . . . . . . . . 1 1 Propulsion 2 | . . . 1 . . . . . . . . . 1 . . . . . . . . . . . . . . . . . . Utility 20 | . . 3 2 1 1 . 1 . . . . 1 . . . 1 . . . 1 2 1 . . 2 . . 1 . . 3 Weapon 9 | . . 1 1 1 . . 2 . . . . . 2 . . . . . . . . . . . 1 . . . . . 1 Tool/Special 4 | . . . . . . . . . 1 . . 1 . . . . . . . . . . . . . . . . . . 2 Average Slot Usage (%) 96 | . 99 100 98 99 91 87 98 93 95 93 100 98 97 99 95 100 99 86 93 98 100 99 99 100 99 99 90 92 87 90 77 Engine 3 | . 14 14 11 11 7 8 7 . 4 6 7 7 6 5 . . . . . . . . . . . . . . . . . Core 1 | . . . . . 1 . 1 8 2 . . . . . 4 5 5 5 5 10 5 . . . . . . . . . . Reactor 3 | . . . . . . . . . . . . . . . 5 5 5 5 3 . 4 10 10 10 9 10 9 9 7 8 6 Treads 7 | . 27 28 21 22 19 . . . . 18 30 29 24 2 . . . . 2 4 . . . . . . . . . . . Leg 18 | . . . . . 1 22 35 33 29 6 . . 7 29 29 29 29 28 21 20 26 26 26 26 25 26 23 25 21 21 14 Device 14 | . 14 14 11 10 9 10 9 9 13 2 . 9 14 19 19 24 22 13 15 15 17 12 20 21 18 21 19 18 17 22 20 Storage 7 | . 14 14 11 11 11 11 9 9 7 7 7 7 6 6 5 5 5 5 5 5 5 5 5 5 5 5 4 4 4 4 4 Processor 7 | . . . 9 11 11 . . . 5 7 11 13 6 10 5 5 5 5 9 10 10 10 10 10 10 10 9 9 10 12 15 Hackware 1 | . . . . . . . . 4 7 7 6 . 5 . . . . . . 4 5 7 . . . . . . . . 3 Protection 4 | . . . . . . 10 8 3 . 9 11 4 3 2 5 3 5 11 6 4 2 5 5 5 7 5 4 4 5 . . Energy Gun 12 | . 14 14 20 22 14 10 6 1 8 9 15 18 18 15 17 16 15 . 9 10 8 9 9 9 9 11 14 17 16 16 4 Ballistic Gun 7 | . 14 14 11 11 10 14 14 17 5 7 7 3 1 1 . . . . . 7 11 10 10 10 9 7 4 1 . . 2 Peak Build Rating 218 | 8 9 9 17 24 47 38 43 45 58 55 48 49 68 79 94 100 104 92 111 124 135 129 133 133 142 139 147 171 202 205 218 Average Rating 75 | 7 8 9 14 16 23 36 34 34 52 41 43 45 56 74 89 98 98 81 94 118 127 124 128 129 129 136 138 163 185 194 173 On Entrance 82 | . 8 9 9 17 16 35 38 36 45 55 42 48 48 68 78 92 95 82 92 106 124 126 129 133 129 142 135 147 170 178 196 Avg Prop Armor Cover (%) 6 | . . . . . 11 . . . . 5 . . 4 10 . . . . 9 5 . . . . . 2 . 2 . . . Naked Turns . | . . . . . . . . . . . . . . . . . . . . . . . . . . . . . . . . Heaviest Build 149 | 13 30 30 54 54 72 60 65 63 69 71 67 74 75 77 89 88 87 86 87 93 103 110 113 113 127 119 126 130 145 130 149 Greatest Support 180 | 40 40 40 40 40 60 60 60 75 90 83 83 83 91 110 95 110 100 100 110 135 135 135 140 140 150 145 155 165 180 180 180 Greatest Overweight (x) 4 | . 1 . 1 1 4 . 1 1 1 3 . 1 1 1 . . . . 1 1 . . . . . 1 . 1 . . 1 Average Overweight (x) . | . . . . 1 . . . . . . . . . . . . . . . . . . . . . . . . . . . Largest Inventory Capacity 35 | 8 15 15 20 20 20 20 20 20 20 20 20 20 20 20 20 35 20 20 20 20 20 20 20 20 20 20 20 20 20 20 20 Average Capacity 19 | 7 14 15 18 20 19 20 20 18 20 20 20 20 20 20 20 20 20 20 20 20 20 20 20 20 20 20 20 20 20 20 20 Most Carried 20 | 7 15 15 20 20 20 17 20 20 20 20 20 20 20 20 20 20 20 20 20 20 20 20 20 20 20 20 20 20 20 20 19 Average Carried 18 | 5 11 14 18 20 17 14 18 16 19 19 19 19 19 19 20 19 19 19 19 19 19 19 19 19 19 20 19 19 19 17 13 Final Capacity 20 | 8 15 15 20 20 20 20 20 20 20 20 20 20 20 20 20 20 20 20 20 20 20 20 20 20 20 20 20 20 20 20 20 Final Carried 20 | 7 15 15 20 20 11 17 20 19 19 20 19 20 20 20 20 19 20 19 20 20 20 20 20 19 19 20 18 20 20 17 13 Class Distribution -------------------- 42% | Scavenger-Gunner 16% | Gunner 14% | Scavenger-Mutant 11% | Mutant 8% | Scavenger-Tank 3% | Tank Dominant Class ---------------- Mutant | -10/Materials Mutant | -10/Mines Gunner | -9/Materials Gunner | -9/Mines Gunner | -9/Exiles Scavenger-Mutant | -8/Mines Scavenger-Tank | -8/Materials Scavenger-Mutant | -8/Garrison Mutant | -7/Factory Scavenger-Tank | -7/Garrison Scavenger-Gunner | -7/Factory Scavenger-Gunner | -7/DSF Scavenger-Gunner | -6/Factory Scavenger-Gunner | -6/Garrison Scavenger-Gunner | -5/Factory Scavenger-Gunner | -5/Upper Caves Scavenger-Gunner | -5/Upper Caves Scavenger-Mutant | -5/Zhirov Scavenger-Mutant | -4/Proximity Caves Scavenger-Gunner | -4/Factory Scavenger-Gunner | -4/Waste Scavenger-Gunner | -4/Factory Scavenger-Gunner | -4/Upper Caves Scavenger-Gunner | -4/Upper Caves Scavenger-Gunner | -4/Warlord Scavenger-Gunner | -3/Proximity Caves Scavenger-Gunner | -3/Research Scavenger-Gunner | -3/DSF Scavenger-Gunner | -2/Research Scavenger-Gunner | -2/Quarantine Scavenger-Skirmisher | -1/Access Resources | -11 -10 -10 -9 -9 -9 -8 -8 -8 -7 -7 -7 -7 -6 -6 -5 -5 -5 -5 -4 -4 -4 -4 -4 -4 -4 -3 -3 -3 -2 -2 -1 ----------- Run | Yrd Mat Min Mat Min Exi Min Mat Gar Fac Gar Fac DSF Fac Gar Fac Upp Upp Zhi Pro Fac Was Fac Upp Upp War Pro Res DSF Res Qua Acc Matter Collected 11125 | 342 203 . 208 60 385 467 711 793 260 1089 . 389 172 521 62 270 500 120 463 406 460 298 287 364 1034 169 . 198 421 124 349 Remotely . | . . . . . . . . . . . . . . . . . . . . . . . . . . . . . . . . Salvage Created 20358 | 280 567 . 586 165 1246 514 1232 1238 619 1317 . 562 714 1115 62 218 379 210 803 733 1610 360 436 79 381 515 . 535 2817 675 390 Parts 886 | 20 36 . 40 9 64 29 69 49 30 69 . 25 22 42 1 13 12 3 25 29 33 15 22 8 13 29 . 27 94 31 27 Haulers Intercepted 13 | . 2 . 2 . . . 4 . 2 . . . 1 1 . . . . . 1 . . . . . . . . . . . Recyclers Shooed 9 | . 1 . 1 . . . 5 . . . . . . . . . . . . . . . . . . . . . . 2 . Parts Field Recycled . | . . . . . . . . . . . . . . . . . . . . . . . . . . . . . . . . Retrieved Matter . | . . . . . . . . . . . . . . . . . . . . . . . . . . . . . . . . Parts Self-Destructed 96 | . . . . . . . . . . . . . . . . 17 12 2 11 . . . 20 9 . 25 . . . . . Prevented 7 | . . . . . . . . . . . . . . . . 1 . . 5 . . . . 1 . . . . . . . Parts Restored . | . . . . . . . . . . . . . . . . . . . . . . . . . . . . . . . . Kills | -11 -10 -10 -9 -9 -9 -8 -8 -8 -7 -7 -7 -7 -6 -6 -5 -5 -5 -5 -4 -4 -4 -4 -4 -4 -4 -3 -3 -3 -2 -2 -1 ------- Run | Yrd Mat Min Mat Min Exi Min Mat Gar Fac Gar Fac DSF Fac Gar Fac Upp Upp Zhi Pro Fac Was Fac Upp Upp War Pro Res DSF Res Qua Acc Combat Hostiles Destroyed 396 | . 12 . 8 6 37 14 16 32 13 42 . 11 11 25 1 6 8 . 16 8 6 6 9 7 27 10 . 10 40 6 9 Melee 7 | . . . . . . . . 3 . 1 . . . . . . . . 3 . . . . . . . . . . . . Guns 241 | . 12 . 8 6 1 10 10 14 7 18 . 11 9 22 . 4 5 . 3 5 6 6 8 4 8 10 . 7 38 6 3 Cannons 26 | . . . . . 12 . 2 . 3 8 . . . . . . . . . 1 . . . . . . . . . . . AOE 100 | . . . . . 19 4 4 12 3 14 . . . 2 . 2 3 . 8 1 . . . 3 18 . . 3 . . 4 Classes Destroyed 24 | 3 5 . 3 1 3 . . . . 1 . 1 . . . . . . . . 1 . 1 . 1 . . . 4 . . Worker 15 | 1 1 . . . . . 3 . . . . . 3 . . . . . . 1 . 1 . . . . . . . 2 3 Builder 6 | . . . 1 . . . 1 . 1 . . . . . . . . . . . . . . . . . . . . 1 2 Tunneler 12 | 9 . . . . . 2 1 . . . . . . . . . . . . . . . . . . . . . . . . Hauler 13 | . 2 . 2 . . . 4 . 2 . . . 1 1 . . . . . 1 . . . . . . . . . . . Recycler 12 | 1 1 . 2 . . 1 6 . . . . . . . . . . . . . . . . . . . . . . 1 . Minesweeper 1 | . . . . . . . . . . . . . . . . . . . . . . . 1 . . . . . . . . Mechanic 1 | . . . 1 . . . . . . . . . . . . . . . . . . . . . . . . . . . . Operator 3 | . 1 . . . . . . . 1 . . . . . . . . . . . . . . . . . . . 1 . . Watcher 1 | . 1 . . . . . . . . . . . . . . . . . . . . . . . . . . . . . . Swarmer 92 | . 6 . . 3 . 8 4 10 4 17 . . . 10 . 3 . . 2 . . . 5 1 . 6 . 3 7 . 3 Grunt 140 | . 6 . 4 2 15 5 4 15 5 12 . 4 7 10 . 2 5 . 8 2 . 4 . 4 20 1 . . 5 . . Brawler 15 | . . . . 1 4 . . 1 . 2 . . 1 2 . . . . 1 . . . . . 1 . . . 2 . . Duelist 13 | . . . . . 3 1 . 1 . 3 . 1 . . . . . . 1 1 . . . . 1 . . . 1 . . Sentry 28 | . . . 4 . . . 5 2 1 6 . 1 . . 1 . 1 . 2 1 . 1 . 1 . 1 . . 1 . . Demolisher 2 | . . . . . . . . . . . . . . . . . . . . . . . . . . . . . 2 . . Specialist 7 | . . . . . . . . . . 2 . 2 . . . . . . . . . . . . . 2 . 1 . . . Hunter 39 | . . . . . 9 . 3 2 . . . 1 . 2 . . . . . 4 . 1 4 . . . . 2 4 4 3 Programmer 36 | . . . . . 5 . . 1 3 . . 1 3 1 . 1 2 . 2 . . . . 1 3 . . 3 5 2 3 Heavy 2 | . . . . . . . . . . . . 1 . . . . . . . . . . . . . . . 1 . . . Behemoth 2 | . . . . . . . . . . . . . . . . . . . . . . . . . . . . . 2 . . Compactor 6 | . . . . . . . . . . . . . . . . . . . . . 6 . . . . . . . . . . Striker 6 | . . . . . . . . . . . . . . . . . . . . . . . . . . . . . 6 . . Executioner 6 | . . . . . . . . . . . . . . . . . . . . . . . . . 2 . . . 4 . . Surgeon 1 | . . . . . . . . . . . . . . . . . . . . . . . . . . . . . 1 . . Fireman 1 | . . . . . . . . . . . . . . . . . . . . . . . . . . . . . 1 . . Best Kill Streak 18 | 2 5 . 3 5 18 5 8 8 5 7 . 6 6 14 1 3 4 . 4 3 3 4 5 4 12 8 . 3 7 8 7 Combat Bots Only 18 | . 4 . 3 3 18 4 6 8 5 7 . 6 5 14 1 3 4 . 4 3 3 4 5 4 12 8 . 3 7 4 4 Max Kills in Single Turn 5 | 1 1 . 1 2 3 4 5 3 2 2 . 2 2 2 1 2 2 . 2 2 1 1 3 2 4 1 . 3 3 2 2 Gunslinging 2 | . . . . 1 . 1 . . . . . 1 . 1 . . . . . . . . 2 . . . . . 2 . . Exploded 4 | . . . . . 2 3 4 3 2 2 . . . 1 . 2 2 . 2 1 . . . 2 4 . . 3 . . 2 Melee 1 | . . . . . . . . 1 . 1 . . . . . . . . 1 . . . . . . . . . . . . Uniques/NPCs Destroyed 1 | . . . . . 1 . . . . . . . . . . . . . . . . . . . . . . . . . . 8R-AWN (-9/Exiles) Combat | -11 -10 -10 -9 -9 -9 -8 -8 -8 -7 -7 -7 -7 -6 -6 -5 -5 -5 -5 -4 -4 -4 -4 -4 -4 -4 -3 -3 -3 -2 -2 -1 -------- Run | Yrd Mat Min Mat Min Exi Min Mat Gar Fac Gar Fac DSF Fac Gar Fac Upp Upp Zhi Pro Fac Was Fac Upp Upp War Pro Res DSF Res Qua Acc Hostile Shots Fired 2107 | . 55 . 16 10 172 58 76 166 107 265 . 91 31 79 5 6 28 . 82 78 . 14 49 38 109 34 . 67 211 60 200 Missed 759 | . 13 . 5 5 43 13 28 53 44 85 . 26 10 22 3 5 13 . 24 33 . 5 20 20 37 16 . 26 90 26 94 Deflected 1 | . . . . . . . . . . . . . . . . . . . . . . . . . . . . . . 1 . Hits 1348 | . 42 . 11 5 129 45 48 113 63 180 . 65 21 57 2 1 15 . 58 45 . 9 29 18 72 18 . 41 121 34 106 Melee 26 | . . . . . 2 1 . 2 . 5 . 3 1 . . . . . 1 1 . . . . . . . . 10 . . Projectile 1322 | . 42 . 11 5 127 44 48 111 63 175 . 62 20 57 2 1 15 . 57 44 . 9 29 18 72 18 . 41 111 34 106 AOE 2 | . . . . . . . . . . . . . . . . . . . . . . 1 . . . . . . 1 . . Critical Strikes 84 | . . . . . 30 1 1 4 1 4 . 5 1 1 . . . . 7 1 . 1 . . 6 . . 1 15 2 3 Part Disruptions 7 | . . . . . . . . 1 . . . . . . . . . . . . . . . . . 3 . 1 . . 2 Damage Taken 23976 | . 482 . 147 54 2055 586 728 1646 677 2218 . 1281 396 1030 48 77 642 . 1292 843 . 293 303 394 1780 137 . 708 2879 768 2512 Core 2859 | . 65 . 27 . 166 119 42 285 77 366 . 206 19 96 . . 69 . 150 98 . 97 39 . 137 7 . 113 242 94 345 Absorbed by Shields 1622 | . . . . . . . . . 92 48 . . . . . . . . . . . . . . 171 144 . 338 829 . . Redirected to Core 207 | . . . . . . . . . . . . . . . . . . . . . . . . . . . . . . 70 137 Ignored by Resistances 124 | . . . . . . . . . . . . . . . . . . . . . . . 112 12 . . . . . . . Regen/Repaired (Parts) 1679 | . . . 84 . . . 292 . . . . . . . . . . . . 94 132 . . . 369 . . . 708 . . Core Remaining (%) 65 | 100 . 74 . . . 22 . 40 . . . 7 . 86 . . . . 78 . . . . . . 67 . 91 . 76 78 Volleys Fired 942 | 24 46 . 21 8 104 28 55 61 29 95 . 24 23 51 4 8 52 . 30 30 24 14 16 10 32 18 . 19 67 21 28 Largest 4 | 2 2 . 3 3 3 3 3 3 3 3 . 3 3 3 3 3 3 . 2 4 4 4 4 4 4 4 . 4 4 4 4 Hottest 280 | 70 70 . 141 141 100 113 130 69 135 191 . 235 225 225 210 210 210 . 145 280 237 237 237 237 237 225 . 260 260 260 225 Shots Fired 2346 | 48 92 . 53 24 154 62 157 141 64 208 . 74 69 124 12 19 72 . 49 89 94 50 64 28 76 63 . 73 264 68 55 Gun 2112 | 48 92 . 49 24 83 59 130 129 54 157 . 74 69 121 12 18 69 . 39 84 94 49 64 23 60 63 . 72 263 68 45 Cannon 146 | . . . . . 71 . 25 . 8 36 . . . . . . . . . 5 . . . . . . . . 1 . . Launcher 84 | . . . . . . 3 2 12 2 15 . . . 3 . 1 3 . 10 . . 1 . 5 16 . . 1 . . 10 Special 4 | . . . 4 . . . . . . . . . . . . . . . . . . . . . . . . . . . . Kinetic 883 | 24 46 . 17 8 74 38 109 129 19 94 . 12 7 33 . . 33 . 2 33 52 24 32 12 31 25 . 11 . . 18 Thermal 1308 | 24 46 . 36 16 80 21 46 . 43 91 . 62 62 84 12 18 36 . 10 36 42 25 32 11 29 38 . 50 263 68 27 Explosive 80 | . . . . . . 3 2 12 2 15 . . . 3 . 1 3 . 10 . . 1 . 5 16 . . 1 . . 6 Electromagnetic 75 | . . . . . . . . . . 8 . . . 4 . . . . 27 20 . . . . . . . 11 1 . 4 Robot Hit Streak 28 | 8 6 . 24 7 24 8 11 15 16 17 . 13 28 23 18 6 13 . 17 12 19 12 7 5 5 6 . 9 22 20 22 Robot Miss Streak 10 | 2 3 . 3 3 3 3 3 3 7 8 . 2 2 4 1 2 2 . 2 4 2 2 3 3 4 2 . 2 4 10 2 Penetration Max 2 | . . . . . . . 1 . . . . . . 1 . . . . . 2 . 1 . . 1 1 . . . . . Secondary Targets 49 | . . . . 1 . 1 . 3 2 1 . 3 2 7 . . . . 1 . . 1 3 . 2 . . 1 17 3 1 Max Gunslinging Chain 2 | . . . . 1 . 1 . 1 1 1 . 1 1 1 . . . . 1 . . 1 2 . 1 . . 1 2 1 1 Shots Hit Robots 1594 | 31 55 . 35 19 90 40 97 115 56 144 . 52 59 79 11 12 21 9 50 68 72 30 37 13 40 38 . 52 195 39 35 Core Hits 1001 | 12 31 . 27 13 40 24 62 62 27 119 . 32 41 61 1 12 23 2 62 33 14 15 16 15 65 22 . 26 95 22 27 Critical Kills 20 | . . . . . 5 3 . 3 . 2 . . . 2 . . . . . 1 3 . . . . . . . . . 1 Critical Parts Destroyed 16 | . 1 . . . . . 2 1 . 1 . 1 . 1 . . . . . . 1 1 1 . 1 . . . . . 5 Critical Strikes 69 | 1 4 . . . 6 4 4 4 3 7 . 3 1 4 . 1 . 1 3 1 6 2 3 1 3 1 . . . . 6 Burn 25 | 1 3 . . . . 1 2 . 3 3 . 2 1 1 . 1 . . . . . 1 2 1 2 1 . . . . . Meltdown 5 | . . . . . 5 . . . . . . . . . . . . . . . . . . . . . . . . . . Destroy 31 | . 1 . . . 1 3 1 1 . 4 . 1 . 3 . . . . . 1 6 1 1 . 1 . . . . . 6 Smash 4 | . . . . . . . 1 3 . . . . . . . . . . . . . . . . . . . . . . . Sever 4 | . . . . . . . . . . . . . . . . . . 1 3 . . . . . . . . . . . . Melee Attacks 124 | . . . 5 . . . 4 41 15 9 . . . 16 . 1 . 9 23 1 . . . . . . . . . . . Impact 73 | . . . 5 . . . 4 41 15 8 . . . . . . . . . . . . . . . . . . . . . Slashing 50 | . . . . . . . . . . 1 . . . 16 . 1 . 8 23 1 . . . . . . . . . . . Piercing . | . . . . . . . . . . . . . . . . . . . . . . . . . . . . . . . . Sneak Attacks 7 | . . . . . . . 1 1 3 . . . . . . . . . 1 1 . . . . . . . . . . . Combat Hostiles 1 | . . . . . . . . . . . . . . . . . . . 1 . . . . . . . . . . . . Follow-up Attacks . | . . . . . . . . . . . . . . . . . . . . . . . . . . . . . . . . Damage Inflicted 58729 | 392 723 4 583 285 5425 1028 2030 3595 1707 4373 . 1264 1853 2390 282 524 918 645 2298 1994 1872 881 881 1079 7722 881 . 1965 6720 1614 2801 Guns 33558 | 392 723 . 561 284 932 655 1247 1374 851 2045 . 1264 1786 2037 282 292 511 . 528 1428 1872 858 881 317 1198 881 . 1371 6639 1551 798 Cannons 3959 | . . . . . 2579 . 400 . 111 741 . . . . . . . . . 128 . . . . . . . . . . . Explosions 17911 | . . . . . 1914 350 266 1182 262 1575 . . . 353 . 232 407 . 1165 362 . 23 . 762 6524 . . 594 . . 1940 Melee 2933 | . . . . . . . 112 1039 456 . . . . . . . . 645 605 76 . . . . . . . . . . . Ramming 368 | . . 4 22 1 . 23 5 . 27 12 . . 67 . . . . . . . . . . . . . . . 81 63 63 Kinetic 11394 | 238 336 . 202 83 780 441 1163 1374 254 1487 . 164 159 497 . . . . . 605 1032 421 464 190 651 442 . 202 . . 209 Thermal 27541 | 154 387 . 359 201 4645 214 484 . 708 1157 . 1100 1627 1466 282 292 511 . 265 1032 840 437 417 127 547 439 . 1071 6639 1551 589 Explosive 15348 | . . . . . . 350 266 1182 262 1575 . . . 353 . 232 407 . 1102 . . 23 . 762 6524 . . 594 . . 1716 Electromagnetic 1145 | . . . . . . . . . . 142 . . . 74 . . . . 326 281 . . . . . . . 98 . . 224 Impact 1607 | . . . . . . . 112 1039 456 . . . . . . . . . . . . . . . . . . . . . . Slashing 1326 | . . . . . . . . . . . . . . . . . . 645 605 76 . . . . . . . . . . . Piercing . | . . . . . . . . . . . . . . . . . . . . . . . . . . . . . . . . Highest Corruption 17 | . . . . . 2 2 . 4 1 11 11 13 . . . . 2 2 17 . . 5 . . 1 2 . 3 3 3 6 Average Corruption 4 | . . . . . 1 2 . 3 1 5 11 12 . . . . 2 2 6 . . 3 . . 1 1 . 2 2 3 5 Corruption Purged 5 | . . . . . . . . . . . . . . . . . . . . . . 5 . . . . . . . . . Corruption Blocked . | . . . . . . . . . . . . . . . . . . . . . . . . . . . . . . . . Effects 209 | . . . . . 10 8 . 24 1 67 2 17 . . . . . 5 37 . . 6 . . 1 8 . . 4 5 14 Message Errors 39 | . . . . . 4 2 . 3 . 9 . 3 . . . . . 1 10 . . 1 . . 1 1 . . . . 4 Matter Fused 49 | . . . . . 4 1 . 7 . 15 2 4 . . . . . . 8 . . 1 . . . 2 . . . 3 2 Heat Flow Errors 26 | . . . . . . . . 7 . 6 . 2 . . . . . 1 5 . . . . . . 2 . . . 1 2 Energy Discharges 24 | . . . . . . 1 . 3 1 10 . 1 . . . . . 2 1 . . 3 . . . . . . . . 2 Parts Rejected 3 | . . . . . . . . . . . . 1 . . . . . . . . . . . . . . . . 1 . 1 Parts Fused 1 | . . . . . . . . . . 1 . . . . . . . . . . . . . . . . . . . . . Data Loss (minor) 31 | . . . . . 1 2 . 1 . 14 . 2 . . . . . . 8 . . 1 . . . . . . 2 . . Data Loss (major) 7 | . . . . . . . . . . 2 . . . . . . . 1 2 . . . . . . . . . . . 2 Misfires 8 | . . . . . . 1 . . . 2 . 3 . . . . . . . . . . . . . 2 . . . . . Alerts 10 | . . . . . . . . 1 . 5 . . . . . . . . 2 . . . . . . 1 . . . . 1 Weapon Failures 11 | . . . . . 1 1 . 2 . 3 . 1 . . . . . . 1 . . . . . . . . . 1 1 . Overload Shots . | . . . . . . . . . . . . . . . . . . . . . . . . . . . . . . . . Overflow Damage 2055 | . . . . . 703 10 65 241 198 30 . . 20 . . 37 . 81 2 8 . . . 32 425 . . 34 36 . 133 Projectiles 621 | . . . . . 621 . . . . . . . . . . . . . . . . . . . . . . . . . . Explosions 869 | . . . . . 82 10 14 37 27 30 . . . . . 37 . . . 8 . . . 32 425 . . 34 . . 133 Melee 565 | . . . . . . . 51 204 171 . . . 20 . . . . 81 2 . . . . . . . . . 36 . . Knockbacks 41 | . . . . . . . 8 5 5 21 . . . . . . . . . . . . . . . . . . 1 . 1 Impact 7 | . . . . . . . . 5 . . . . . . . . . . . . . . . . . . . . 1 . 1 Kinetic 32 | . . . . . . . 8 . 5 19 . . . . . . . . . . . . . . . . . . . . . Secondary 2 | . . . . . . . . . . 2 . . . . . . . . . . . . . . . . . . . . . Self-Inflicted Damage 745 | . . . . . 75 11 . 53 . 174 . . . . . 39 . . 6 . . . . 109 94 . . . . . 184 Shots 17 | . . . . . 1 1 . 4 . 5 . . . . . 1 . . 1 . . . . 1 1 . . . . . 2 Rammed 8 | . 1 1 3 1 . . . . . 2 . . . . . . . . . . . . . . . . . . . . . Targets Rammed 25 | . 1 1 5 1 . 3 1 . 2 3 . . 2 . . . . . . . . . . . . . . . 1 2 3 Kicked 14 | . . . . . . 3 1 . 2 . . . 2 . . . . . . . . . . . . . . . 1 2 3 Crushed 3 | . . . 2 . . . . . . 1 . . . . . . . . . . . . . . . . . . . . . Highest Temperature 414 | 63 147 . 350 306 238 105 72 216 18 257 . 348 363 130 118 336 327 69 28 . . 414 305 130 218 . . . 8 . 215 Average Temperature 71 | 20 43 . 93 115 72 47 16 53 6 73 . 105 129 52 56 119 134 33 20 . . 160 138 59 88 . . . 5 . 51 Received Heat Transfer 3679 | . 231 . 60 30 234 243 270 576 174 551 . 234 135 141 18 9 93 . 252 33 . 60 . 21 195 . . . 119 . . Effects 6 | . . . 2 . 2 . . . . 1 . . . . . . . . . . . 1 . . . . . . . . . Energy Bleed 2 | . . . . . . . . . . 1 . . . . . . . . . . . 1 . . . . . . . . . Interference 4 | . . . 2 . 2 . . . . . . . . . . . . . . . . . . . . . . . . . . Siege Activations . | . . . . . . . . . . . . . . . . . . . . . . . . . . . . . . . . Martial Activations . | . . . . . . . . . . . . . . . . . . . . . . . . . . . . . . . . Shielding Activations 1 | . . . . . . . . . . . . . . . . . . . . . . . . . . . . . . 1 . Total Turns 15 | . . . . . . . . . . . . . . . . . . . . . . . . . . . . . . 15 . Longest Duration 15 | . . . . . . . . . . . . . . . . . . . . . . . . . . . . . . 15 . Robots Disrupted 1 | . . . . . . . . . . . . . . . . . . . . 1 . . . . . . . . . . . Combat Hostiles 1 | . . . . . . . . . . . . . . . . . . . . 1 . . . . . . . . . . . Robots Corrupted 13 | . . . . . . . 1 5 1 . . . . . . . . . 2 1 . . . . . . . . 1 . 2 Combat Hostiles 8 | . . . . . . . . 3 . . . . . . . . . . 2 1 . . . . . . . . . . 2 Parts Fried 18 | . . . . . . . 3 8 1 . . . . 1 . . . . . 1 . . . . . . . . 1 . 3 Impact Corruptions 18 | . . . . . . . 2 9 4 . . . 1 . . . . . . . . . . . . . . . 2 . . Robots Melted 14 | . . . . . 5 . . . . 1 . . 2 1 1 . . . . . . . 1 . 1 . . . 2 . . Combat Hostiles 14 | . . . . . 5 . . . . 1 . . 2 1 1 . . . . . . . 1 . 1 . . . 2 . . Parts Melted 69 | 1 2 . . 1 5 1 . . 3 3 . 6 6 7 3 . 1 . . 1 . 2 1 . 5 3 . 3 12 3 . Heat Transferred 40421 | 518 1369 . 683 342 3841 592 1184 . 1484 2515 . 2650 3181 2622 509 533 819 . 474 1249 1221 703 777 259 944 777 . 1332 7475 1739 629 Parts Sabotaged . | . . . . . . . . . . . . . . . . . . . . . . . . . . . . . . . . Parts Stolen . | . . . . . . . . . . . . . . . . . . . . . . . . . . . . . . . . Parts Stripped . | . . . . . . . . . . . . . . . . . . . . . . . . . . . . . . . . Power Chain Reactions 3 | . . . . . . . . . . . . . . . . . . . 1 2 . . . . . . . . . . . Alert | -11 -10 -10 -9 -9 -9 -8 -8 -8 -7 -7 -7 -7 -6 -6 -5 -5 -5 -5 -4 -4 -4 -4 -4 -4 -4 -3 -3 -3 -2 -2 -1 ------- Run | Yrd Mat Min Mat Min Exi Min Mat Gar Fac Gar Fac DSF Fac Gar Fac Upp Upp Zhi Pro Fac Was Fac Upp Upp War Pro Res DSF Res Qua Acc Maximum Alert Level 5 | . . . . . . . . 4 3 5 4 3 2 4 3 . . . . . . 1 . . . . . 1 3 2 1 Low Security (%) 48 | 100 100 100 100 100 . 100 100 6 . . . . . . . . . . . 100 100 46 . . . . 100 83 9 . 35 Level 1 10 | . . . . . . . . 7 . . . . 22 5 . . . . . . . 53 . . . . . 16 39 6 64 Level 2 14 | . . . . . . . . 40 89 3 . . 77 14 54 . . . . . . . . . . . . . 21 93 . Level 3 14 | . . . . . . . . 42 10 35 . 100 . 29 45 . . . . . . . . . . . . . 29 . . Level 4 7 | . . . . . . . . 3 . 26 100 . . 50 . . . . . . . . . . . . . . . . . Level 5 4 | . . . . . . . . . . 34 . . . . . . . . . . . . . . . . . . . . . High Security . | . . . . . . . . . . . . . . . . . . . . . . . . . . . . . . . . Max Security . | . . . . . . . . . . . . . . . . . . . . . . . . . . . . . . . . Sterilizations 2 | . . . . . . . . . . . . 1 . . . . . . . . . . . . . . . 1 . . . Peak Influence 2345 | 10 171 59 91 104 . 163 188 1246 778 2345 1230 1041 546 1381 724 . . . . 121 38 349 . . . . 2 301 932 599 362 Initial 1230 | . . 59 . 34 . . 59 76 653 540 1230 826 546 317 724 . . . . . 38 . . . . . 2 1 168 479 160 Average 438 | 1 41 4 23 16 . 101 98 688 630 1381 1208 916 442 973 697 . . . . 73 1 180 . . . . 2 127 475 506 223 Influence Increases 14356 | 55 367 . 428 162 720 363 585 1300 433 1935 . 275 298 1134 60 264 254 15 400 340 4 1088 223 190 786 240 . 301 1206 270 660 Destroy 0b10 Robot/C 8320 | . 240 . 240 120 720 280 320 640 260 840 . 220 220 500 20 200 200 . 320 160 . 360 180 140 560 200 . 200 800 120 260 Destroy 0b10 Robot/NC 395 | 55 30 . 30 . . 15 75 25 20 10 . . 20 5 . . . 15 . 10 . 15 5 . . . . . 5 20 40 Destroy Leader 1156 | . 66 . 94 20 . 40 108 40 74 40 . 40 42 40 10 20 30 . 20 42 . 80 30 20 . 10 . 30 170 30 60 Allied During Kill 548 | . . . 17 . . . . . . . . . . . 6 44 24 . . . . 269 8 . 166 . . . . . 14 Successful Hack 279 | . . . 7 7 . . 40 14 76 . . . . 28 24 . . . . 8 . 41 . . . . . . . 34 . Select Force Hacks 30 | . . . 30 . . . . . . . . . . . . . . . . . . . . . . . . . . . . Disable Machine 420 | . . . . . . . 15 105 . 60 . . . 45 . . . . . 45 . 75 . . . . . 15 . 30 30 Anti-Garrison Action 1800 | . . . . . . . . 400 . 900 . . . 350 . . . . . . . . . . . . . . 150 . . Destroy Structure 928 | . 1 . 10 . . 28 27 61 3 85 . . 1 91 . . . . . 60 4 248 . . . . . 26 36 21 226 Partial Spotted 30 | . . . . . . . . . . . . . . . . . . . . 15 . . . . . . . . . 15 . Lose Combat Pursuer 450 | . 30 . . 15 . . . 15 . . . 15 15 75 . . . . 60 . . . . 30 60 30 . 30 45 . 30 Influence Decreases 14070 | 55 214 153 339 251 147 783 621 171 907 362 1165 414 885 207 767 807 385 15 400 230 114 775 523 166 249 810 2 2 655 853 643 Entered New Map 6138 | . . 94 . 55 . 573 94 41 593 232 1115 354 495 137 657 251 26 . . . 72 . 116 4 37 574 2 1 133 373 109 Time Decay 6114 | 55 204 59 314 196 77 190 497 . 294 . 50 . 380 . 110 556 335 15 290 200 34 435 367 162 102 236 . . 422 160 374 Lost Part 935 | . 10 . . . 70 20 20 130 20 130 . 60 10 70 . . 4 . 110 30 . . . . 70 . . 1 40 20 120 Lost Ally 433 | . . . 25 . . . 10 . . . . . . . . . 20 . . . 8 190 40 . 40 . . . 60 . 40 Purge Threat 450 | . . . . . . . . . . . . . . . . . . . . . . 150 . . . . . . . 300 . Squads Dispatched 34 | . 4 . 3 . . . 2 . 4 . . 1 3 . . . . . . 1 . 7 . . . . . 1 2 1 5 Investigation 10 | . 3 . 1 . . . 2 . 1 . . . . . . . . . . . . 2 . . . . . . 1 . . Extermination 8 | . . . . . . . . . 1 . . . 2 . . . . . . . . 2 . . . . . . . 1 2 Reinforcement 12 | . 1 . 2 . . . . . 1 . . 1 1 . . . . . . 1 . . . . . . . 1 1 . 3 Assault . | . . . . . . . . . . . . . . . . . . . . . . . . . . . . . . . . Garrison 4 | . . . . . . . . . 1 . . . . . . . . . . . . 3 . . . . . . . . . Intercept . | . . . . . . . . . . . . . . . . . . . . . . . . . . . . . . . . Searches Triggered . | . . . . . . . . . . . . . . . . . . . . . . . . . . . . . . . . Construction Impeded 1 | . . . 1 . . . . . . . . . . . . . . . . . . . . . . . . . . . . Haulers Reinforced 2 | . . . . . . . . . . . . . 1 . . . . . . 1 . . . . . . . . . . . Active Scanning Responses . | . . . . . . . . . . . . . . . . . . . . . . . . . . . . . . . . Cargo Convoy Interrupts . | . . . . . . . . . . . . . . . . . . . . . . . . . . . . . . . . Stealth | -11 -10 -10 -9 -9 -9 -8 -8 -8 -7 -7 -7 -7 -6 -6 -5 -5 -5 -5 -4 -4 -4 -4 -4 -4 -4 -3 -3 -3 -2 -2 -1 --------- Run | Yrd Mat Min Mat Min Exi Min Mat Gar Fac Gar Fac DSF Fac Gar Fac Upp Upp Zhi Pro Fac Was Fac Upp Upp War Pro Res DSF Res Qua Acc Distress Signals 15 | . 1 . 4 . . . 1 . . . . . . . . . . . . . . 1 . . 1 . . . 7 . . Communications Jammed 20 | . . . . . . . . . . . . . . . . . . . . 10 . 1 . . . . . . . 3 6 Distress Signals 13 | . . . . . . . . . . . . . . . . . . . . 7 . . . . . . . . . 3 3 Times Spotted 549 | . 21 . 14 5 25 14 24 38 22 43 . 13 14 24 1 4 10 . 19 10 6 14 9 6 71 11 . 12 92 9 18 Peak Tracking Total 18 | . 4 . 3 3 10 4 6 8 6 5 . 5 3 7 1 2 5 . 5 3 1 3 5 4 18 5 . 5 11 3 4 Tactical Retreats 24 | . 2 . . 1 . . . 1 . . . 1 1 2 . . . . 3 . . . . 2 3 1 . 1 4 . 2 Traps | -11 -10 -10 -9 -9 -9 -8 -8 -8 -7 -7 -7 -7 -6 -6 -5 -5 -5 -5 -4 -4 -4 -4 -4 -4 -4 -3 -3 -3 -2 -2 -1 ------- Run | Yrd Mat Min Mat Min Exi Min Mat Gar Fac Gar Fac DSF Fac Gar Fac Upp Upp Zhi Pro Fac Was Fac Upp Upp War Pro Res DSF Res Qua Acc Traps Triggered 16 | . 2 . . . . . . 5 1 5 . 1 . 1 . . . . . 1 . . . . . . . . . . . Indirectly . | . . . . . . . . . . . . . . . . . . . . . . . . . . . . . . . . Trap Hack Attempts . | . . . . . . . . . . . . . . . . . . . . . . . . . . . . . . . . Triggered . | . . . . . . . . . . . . . . . . . . . . . . . . . . . . . . . . Disarmed . | . . . . . . . . . . . . . . . . . . . . . . . . . . . . . . . . Reprogrammed . | . . . . . . . . . . . . . . . . . . . . . . . . . . . . . . . . Reused 3 | . . . . . 3 . . . . . . . . . . . . . . . . . . . . . . . . . . Traps Extracted . | . . . . . . . . . . . . . . . . . . . . . . . . . . . . . . . . Installed 3 | . . . . . 3 . . . . . . . . . . . . . . . . . . . . . . . . . . Triggered . | . . . . . . . . . . . . . . . . . . . . . . . . . . . . . . . . Most Traps Carried 3 | . . 3 3 3 3 . . 1 . . . . . . . . . . . . . . . . . . . . . . . Machines | -11 -10 -10 -9 -9 -9 -8 -8 -8 -7 -7 -7 -7 -6 -6 -5 -5 -5 -5 -4 -4 -4 -4 -4 -4 -4 -3 -3 -3 -2 -2 -1 ---------- Run | Yrd Mat Min Mat Min Exi Min Mat Gar Fac Gar Fac DSF Fac Gar Fac Upp Upp Zhi Pro Fac Was Fac Upp Upp War Pro Res DSF Res Qua Acc Machines Disabled 62 | . . . . . 11 . 1 11 . 11 . . . 9 . 1 . . 1 3 . 5 . . 2 1 . 1 1 2 2 Max in Single Turn 2 | . . . . . 2 . 1 1 . 2 . . . 1 . 1 . . 1 1 . 1 . . 1 1 . 1 1 1 1 Garrison Access 5 | . . . . . . . . . . . . . . . . . . . . . . . . . . . . . 4 . 1 Garrison Relay 14 | . . . . . . . . 4 . 5 . . . 5 . . . . . . . . . . . . . . . . . Phase Generator 2 | . . . . . . . . 1 . 1 . . . . . . . . . . . . . . . . . . . . . Machines Repaired . | . . . . . . . . . . . . . . . . . . . . . . . . . . . . . . . . Machines Dismantled . | . . . . . . . . . . . . . . . . . . . . . . . . . . . . . . . . Machines Sabotaged . | . . . . . . . . . . . . . . . . . . . . . . . . . . . . . . . . Overloaded Fab Kills . | . . . . . . . . . . . . . . . . . . . . . . . . . . . . . . . . Hacking | -11 -10 -10 -9 -9 -9 -8 -8 -8 -7 -7 -7 -7 -6 -6 -5 -5 -5 -5 -4 -4 -4 -4 -4 -4 -4 -3 -3 -3 -2 -2 -1 --------- Run | Yrd Mat Min Mat Min Exi Min Mat Gar Fac Gar Fac DSF Fac Gar Fac Upp Upp Zhi Pro Fac Was Fac Upp Upp War Pro Res DSF Res Qua Acc Machines Accessed 71 | . 3 . 6 1 2 . 8 3 7 3 1 . 2 3 2 3 . 5 1 1 . 9 1 . 1 . 1 . 2 3 3 Terminals 40 | . 2 . 4 1 . . 5 3 4 3 1 . . 3 1 1 . . 1 . . 5 . . . . 1 . . 3 2 Fabricators 4 | . . . . . . . . . . . . . 1 . 1 . . . . . . 2 . . . . . . . . . Repair Stations 3 | . . . 1 . . . 1 . . . . . . . . . . . . 1 . . . . . . . . . . . Recycling Units 3 | . 1 . 1 . . . . . 1 . . . . . . . . . . . . . . . . . . . . . . Scanalyzers 4 | . . . . . . . 1 . 1 . . . . . . . . . . . . 2 . . . . . . . . . Garrison Access 6 | . . . . . . . 1 . 1 . . . 1 . . . . . . . . . . . . . . . 2 . 1 Total Hacks 197 | . 8 . 17 3 2 . 30 7 18 7 1 . 11 5 7 5 . 18 3 2 . 31 1 . 4 . 2 . 3 8 4 Successful 126 | . 1 . 10 1 2 . 22 2 11 . 1 . 9 2 3 5 . 18 3 2 . 21 1 . 4 . 1 . 1 5 1 Failed 71 | . 7 . 7 2 . . 8 5 7 7 . . 2 3 4 . . . . . . 10 . . . . 1 . 2 3 3 Catastrophic 16 | . 2 . . . . . . 1 3 2 . . 1 1 1 . . . . . . 1 . . . . . . 1 1 2 Database Lockouts . | . . . . . . . . . . . . . . . . . . . . . . . . . . . . . . . . Manual 57 | . 4 . 6 3 1 . 12 3 6 . . . 1 1 5 . . . . . . 13 . . . . . . . 1 1 Terminals 115 | . 7 . 12 3 . . 20 7 11 7 1 . . 5 5 3 . . 3 . . 19 . . . . 2 . . 8 2 Fabricators 18 | . . . . . . . . . . . . . 9 . 2 . . . . . . 7 . . . . . . . . . Repair Stations 10 | . . . 3 . . . 5 . . . . . . . . . . . . 2 . . . . . . . . . . . Recycling Units 6 | . 1 . 2 . . . . . 3 . . . . . . . . . . . . . . . . . . . . . . Scanalyzers 11 | . . . . . . . 4 . 2 . . . . . . . . . . . . 5 . . . . . . . . . Garrison Access 10 | . . . . . . . 1 . 2 . . . 2 . . . . . . . . . . . . . . . 3 . 2 Terminal Hacks 69 | . . . 4 1 2 . 5 1 3 . 1 . . 2 2 5 . 18 3 . . 11 1 . 4 . 1 . . 5 . Record 15 | . . . 1 . 1 . . . . . . . . . . 4 . 6 3 . . . . . . . . . . . . Part Schematic 6 | . . . . 1 . . . . . . . . . . . . . 4 . . . 1 . . . . . . . . . Robot Analysis 5 | . . . . . . . 1 . . . . . . . . . . 4 . . . . . . . . . . . . . Prototype ID Bank 12 | . . . 2 . . . 1 . . . . . . . . . . 4 . . . . . . 4 . . . . 1 . Open Door 2 | . . . . . . . . . . . . . . . . 1 . . . . . . 1 . . . . . . . . Open DSF 2 | . . . . . . . . . . . 1 . . . . . . . . . . . . . . . 1 . . . . Branch Access Points 3 | . . . 1 . . . . . . . . . . . 1 . . . . . . 1 . . . . . . . . . Emergency Access Points 2 | . . . . . . . . . . . . . . 1 . . . . . . . . . . . . . . . 1 . Terminal Index 3 | . . . . . . . 1 . 1 . . . . . . . . . . . . 1 . . . . . . . . . Fabricator Index 1 | . . . . . . . . . . . . . . . . . . . . . . 1 . . . . . . . . . Scanalyzer Index 2 | . . . . . . . 1 . . . . . . . . . . . . . . 1 . . . . . . . . . Alert Level 1 | . . . . . . . . . . . . . . . . . . . . . . 1 . . . . . . . . . Unreport Threat 3 | . . . . . . . . . . . . . . . . . . . . . . 1 . . . . . . . 2 . Locate Traps 2 | . . . . . . . . . . . . . . . . . . . . . . 2 . . . . . . . . . Dispatch Records 1 | . . . . . . . . . . . . . . . . . . . . . . 1 . . . . . . . . . Maintenance Status 3 | . . . . . . . . . 1 . . . . . 1 . . . . . . 1 . . . . . . . . . Patrol Status 1 | . . . . . . . . . . . . . . . . . . . . . . . . . . . . . . 1 . Registered Components 1 | . . . . . . . . . 1 . . . . . . . . . . . . . . . . . . . . . . Zone Layout 1 | . . . . . . . 1 . . . . . . . . . . . . . . . . . . . . . . . . Patrol Navigation 2 | . . . . . . . . 1 . . . . . 1 . . . . . . . . . . . . . . . . . Proto ID Catalog 1 | . . . . . 1 . . . . . . . . . . . . . . . . . . . . . . . . . . Fabricator Hacks 13 | . . . . . . . . . . . . . 8 . 1 . . . . . . 4 . . . . . . . . . Load Schematic 6 | . . . . . . . . . . . . . 4 . . . . . . . . 2 . . . . . . . . . Build 7 | . . . . . . . . . . . . . 4 . 1 . . . . . . 2 . . . . . . . . . Repair Station Hacks 8 | . . . 2 . . . 4 . . . . . . . . . . . . 2 . . . . . . . . . . . Scan Component 4 | . . . 1 . . . 2 . . . . . . . . . . . . 1 . . . . . . . . . . . Repair 4 | . . . 1 . . . 2 . . . . . . . . . . . . 1 . . . . . . . . . . . Recycling Unit Hacks 2 | . 1 . 1 . . . . . . . . . . . . . . . . . . . . . . . . . . . . Report Inventory 2 | . 1 . 1 . . . . . . . . . . . . . . . . . . . . . . . . . . . . Scanalyzer 8 | . . . . . . . 3 . 2 . . . . . . . . . . . . 3 . . . . . . . . . Insert Component 4 | . . . . . . . 2 . 1 . . . . . . . . . . . . 1 . . . . . . . . . Analyze 3 | . . . . . . . 1 . 1 . . . . . . . . . . . . 1 . . . . . . . . . Retrieve Study 1 | . . . . . . . . . . . . . . . . . . . . . . 1 . . . . . . . . . Garrison Access Hacks 5 | . . . . . . . 1 . 1 . . . 1 . . . . . . . . . . . . . . . 1 . 1 Unlock Access 3 | . . . . . . . 1 . 1 . . . 1 . . . . . . . . . . . . . . . . . . Seal Access 2 | . . . . . . . . . . . . . . . . . . . . . . . . . . . . . 1 . 1 Unauthorized Hacks 20 | . . . 3 . . . 8 1 5 . . . . . . . . . . . . 3 . . . . . . . . . Terminals 16 | . . . 2 . . . 8 1 2 . . . . . . . . . . . . 3 . . . . . . . . . Assimilate 1 | . . . . . . . 1 . . . . . . . . . . . . . . . . . . . . . . . . Botnet 5 | . . . 1 . . . 1 1 . . . . . . . . . . . . . 2 . . . . . . . . . Operators 3 | . . . 1 . . . 1 . . . . . . . . . . . . . . 1 . . . . . . . . . Skim 7 | . . . . . . . 5 . 2 . . . . . . . . . . . . . . . . . . . . . . Fabricators . | . . . . . . . . . . . . . . . . . . . . . . . . . . . . . . . . Repair Stations . | . . . . . . . . . . . . . . . . . . . . . . . . . . . . . . . . Recycling Units 4 | . . . 1 . . . . . 3 . . . . . . . . . . . . . . . . . . . . . . Monitor 1 | . . . . . . . . . 1 . . . . . . . . . . . . . . . . . . . . . . Reject 1 | . . . . . . . . . 1 . . . . . . . . . . . . . . . . . . . . . . Recyclers 1 | . . . . . . . . . 1 . . . . . . . . . . . . . . . . . . . . . . Tunnel 1 | . . . 1 . . . . . . . . . . . . . . . . . . . . . . . . . . . . Scanalyzers . | . . . . . . . . . . . . . . . . . . . . . . . . . . . . . . . . Garrison Access . | . . . . . . . . . . . . . . . . . . . . . . . . . . . . . . . . Data Cores Recovered 1 | . . . . . . . . . . . . . . . . . . . . . . 1 . . . . . . . . . Used . | . . . . . . . . . . . . . . . . . . . . . . . . . . . . . . . . Hacking Detections 50 | . 2 . 5 1 . . 6 3 6 3 . . 2 3 2 1 . . 1 1 . 6 . . . . 1 . 1 3 3 Full Trace Events 10 | . 2 . . . . . 2 . . 2 . . . . . 1 . . . . . 2 . . . . . . 1 . . Feedback Events . | . . . . . . . . . . . . . . . . . . . . . . . . . . . . . . . . Feedback Blocked . | . . . . . . . . . . . . . . . . . . . . . . . . . . . . . . . . Robot Schematics Acquired . | . . . . . . . . . . . . . . . . . . . . . . . . . . . . . . . . Robots Built 2 | . . . . . . . . . . . . . . . 2 . . . . . . . . . . . . . . . . Authchips . | . . . . . . . . . . . . . . . . . . . . . . . . . . . . . . . . Time 84 | . . . . . . . . . . . . . . . 84 . . . . . . . . . . . . . . . . Total Robot Build Rating 12 | . . . . . . . . . . . . . . . 12 . . . . . . . . . . . . . . . . Part Schematics Acquired 9 | . . . . 1 . . 1 . 1 . . . . . . . . 4 . . . 2 . . . . . . . . . Parts Built 6 | . . . . . . . . . . . . . 4 . . . . . . . . 2 . . . . . . . . . Authchips 5 | . . . . . . . . . . . . . 4 . . . . . . . . 1 . . . . . . . . . Time 696 | . . . . . . . . . . . . . 381 . . . . . . . . 315 . . . . . . . . . Total Part Build Rating 45 | . . . . . . . . . . . . . 29 . . . . . . . . 16 . . . . . . . . . Part Studies Acquired 1 | . . . . . . . . . . . . . . . . . . . . . . 1 . . . . . . . . . Parts Repaired 4 | . . . 1 . . . 2 . . . . . . . . . . . . 1 . . . . . . . . . . . Time 130 | . . . 26 . . . 82 . . . . . . . . . . . . 22 . . . . . . . . . . . Parts Recycled . | . . . . . . . . . . . . . . . . . . . . . . . . . . . . . . . . Recycled Matter . | . . . . . . . . . . . . . . . . . . . . . . . . . . . . . . . . Retrieved Matter . | . . . . . . . . . . . . . . . . . . . . . . . . . . . . . . . . Retrieved Components . | . . . . . . . . . . . . . . . . . . . . . . . . . . . . . . . . Parts Scanalyzed 3 | . . . . . . . 2 . . . . . . . . . . . . . . 1 . . . . . . . . . Part Schematics Acquired 3 | . . . . . . . 1 . 1 . . . . . . . . . . . . 1 . . . . . . . . . Parts Damaged 1 | . . . . . . . 1 . . . . . . . . . . . . . . . . . . . . . . . . Bothacking | -11 -10 -10 -9 -9 -9 -8 -8 -8 -7 -7 -7 -7 -6 -6 -5 -5 -5 -5 -4 -4 -4 -4 -4 -4 -4 -3 -3 -3 -2 -2 -1 ------------ Run | Yrd Mat Min Mat Min Exi Min Mat Gar Fac Gar Fac DSF Fac Gar Fac Upp Upp Zhi Pro Fac Was Fac Upp Upp War Pro Res DSF Res Qua Acc Used RIF Installer . | . . . . . . . . . . . . . . . . . . . . . . . . . . . . . . . . Robots Hacked . | . . . . . . . . . . . . . . . . . . . . . . . . . . . . . . . . Non-combat . | . . . . . . . . . . . . . . . . . . . . . . . . . . . . . . . . Combat . | . . . . . . . . . . . . . . . . . . . . . . . . . . . . . . . . Robot Hacks Applied . | . . . . . . . . . . . . . . . . . . . . . . . . . . . . . . . . Relay Couplers Released 69 | . . . . . . . . 18 4 19 . . . 26 . . . . . . . . . . . . . . 2 . . Machine Destruction 61 | . . . . . . . . 18 . 19 . . . 22 . . . . . . . . . . . . . . 2 . . Programmers 8 | . . . . . . . . . 4 . . . . 4 . . . . . . . . . . . . . . . . . Fabnet Peak Effective % . | . . . . . . . . . . . . . . . . . . . . . . . . . . . . . . . . Robots Rewired 5 | . . . . . . . . . . . . . . . . . . . . . . . . . 5 . . . . . . Allies Hacked . | . . . . . . . . . . . . . . . . . . . . . . . . . . . . . . . . Hacks Repelled . | . . . . . . . . . . . . . . . . . . . . . . . . . . . . . . . . Allies | -11 -10 -10 -9 -9 -9 -8 -8 -8 -7 -7 -7 -7 -6 -6 -5 -5 -5 -5 -4 -4 -4 -4 -4 -4 -4 -3 -3 -3 -2 -2 -1 -------- Run | Yrd Mat Min Mat Min Exi Min Mat Gar Fac Gar Fac DSF Fac Gar Fac Upp Upp Zhi Pro Fac Was Fac Upp Upp War Pro Res DSF Res Qua Acc Total Allies 34 | . . 3 . . . . 1 . . . . . . . 2 . . . . . 19 . . . 5 . . . 4 . . Largest Group 18 | . . 3 3 . . . 1 . . . . . . . 2 2 2 . . . 18 18 2 . 5 . . . 4 . . Highest-Rated Group 638 | . . 40 40 . . . 10 . . . . . . . 98 98 98 . . . 638 638 93 . 278 . . . 377 . . Highest-Rated Ally 96 | . . 16 16 . . . 10 . . . . . . . 49 49 49 . . . 50 50 47 . 68 . . . 96 . . Initial Warlord ECA Mod 42 | . . . . . . . . . 8 8 18 18 27 27 35 35 35 35 34 34 34 34 34 34 34 33 33 33 42 . . Total Orders 15 | . . . 2 . . . . . . . . . . . . 9 . . . . . . . . 2 . . . . . 2 STAY 8 | . . . 1 . . . . . . . . . . . . 5 . . . . . . . . 2 . . . . . . FOLLOW 5 | . . . 1 . . . . . . . . . . . . 4 . . . . . . . . . . . . . . . RETURN 2 | . . . . . . . . . . . . . . . . . . . . . . . . . . . . . . . 2 Ally Attacks 264 | . . . 20 . . . . . . . . . . . . 9 11 . . . 5 99 9 . 19 . . . 33 . 59 Total Damage 7116 | . . . 218 . . . . . . . . . . . . 228 358 . . . 70 3076 217 . 814 . . . 1118 . 1017 Kills 36 | . . . 4 . . . . . . . . . . . . 4 2 . . . . 14 . . 1 . . . 4 . 7 Allies Corrupted 1 | . . . . . . . . . . . . . . . . . . . . . . . . . . . . . . . 1 Allies Melted . | . . . . . . . . . . . . . . . . . . . . . . . . . . . . . . . . Intel | -11 -10 -10 -9 -9 -9 -8 -8 -8 -7 -7 -7 -7 -6 -6 -5 -5 -5 -5 -4 -4 -4 -4 -4 -4 -4 -3 -3 -3 -2 -2 -1 ------- Run | Yrd Mat Min Mat Min Exi Min Mat Gar Fac Gar Fac DSF Fac Gar Fac Upp Upp Zhi Pro Fac Was Fac Upp Upp War Pro Res DSF Res Qua Acc Active Infowar (turns) 17846 | 422 906 889 1208 1189 1521 . 378 797 . 358 . . . . . 1480 1201 . 476 474 1039 959 1068 1214 1045 . . . 17 330 875 Sensors 4270 | . . . 1 . . . . . . . . . . . . 1480 1201 . 469 . 1 . . . . . . . 4 328 786 IFF 3373 | . . . . . . . . . . . . . . . . . . . . . . 62 1060 1214 1037 . . . . . . Terrain 795 | . . . . . . . . . . . . . . . . . . . . . . . . . . . . . . . 795 Seismic 7688 | 422 906 889 1208 1189 1521 . 378 797 . 358 . . . . . . . . . . . . . . . . . . . . 20 Jamming 4659 | . . . . . . . . . . . . . . . . . . . 95 474 1039 959 157 125 592 . . . 13 330 875 Robot Analysis Total 5 | . . . . . . . 1 . . . . . . . . . . 4 . . . . . . . . . . . . . Derelict Logs Recovered 7 | . . 1 . 1 . . . . . . . . . . . 1 1 . 1 . . . 2 . . . . . . . . Drone Launches 4 | . . . . . . . . . . . . . . . . . . . . . . . . . . . . . . . 4 Drone Recoveries 2 | . . . . . . . . . . . . . . . . . . . . . . . . . . . . . . . 2 Exploration | -11 -10 -10 -9 -9 -9 -8 -8 -8 -7 -7 -7 -7 -6 -6 -5 -5 -5 -5 -4 -4 -4 -4 -4 -4 -4 -3 -3 -3 -2 -2 -1 ------------- Run | Yrd Mat Min Mat Min Exi Min Mat Gar Fac Gar Fac DSF Fac Gar Fac Upp Upp Zhi Pro Fac Was Fac Upp Upp War Pro Res DSF Res Qua Acc Turns Passed 31205 | 534 906 889 1225 1194 2495 393 1698 1864 655 2422 105 419 885 1262 224 1622 1519 244 1330 474 1039 1199 1126 1214 1133 521 6 377 1026 330 875 Spaces Moved 18170 | 249 448 543 434 476 831 238 771 1080 431 968 62 176 472 840 158 1252 1150 167 912 277 711 868 871 966 748 417 2 251 684 203 514 Core 5 | 5 . . . . . . . . . . . . . . . . . . . . . . . . . . . . . . . Treads 4213 | 244 448 543 434 476 721 . . . . 687 62 176 422 . . . . . . . . . . . . . . . . . . Legs 13889 | . . . . . 47 238 771 1080 431 281 . . 50 840 158 1252 1150 167 912 277 711 868 871 966 748 417 2 251 684 203 514 Wheels 63 | . . . . . 63 . . . . . . . . . . . . . . . . . . . . . . . . . . Hover . | . . . . . . . . . . . . . . . . . . . . . . . . . . . . . . . . Flight . | . . . . . . . . . . . . . . . . . . . . . . . . . . . . . . . . Fastest Speed 50 | 50 160 160 160 240 120 120 120 112 110 110 160 160 120 120 120 120 120 120 120 120 120 120 120 120 110 106 105 105 106 108 108 Average Speed 141 | 157 160 160 217 240 209 120 182 139 113 207 160 162 156 120 120 120 120 120 121 120 120 120 120 120 116 109 105 109 107 108 140 Slowest Speed 400 | 160 240 160 240 240 240 120 190 190 186 400 160 240 240 190 120 120 120 120 190 190 120 120 120 120 120 180 106 180 110 108 176 Overloaded Moves . | . . . . . . . . . . . . . . . . . . . . . . . . . . . . . . . . Propulsion Burnouts . | . . . . . . . . . . . . . . . . . . . . . . . . . . . . . . . . Robots Hopped . | . . . . . . . . . . . . . . . . . . . . . . . . . . . . . . . . Potential Cave-ins 18 | . . . . . . . . . . . . . . . . . 18 . . . . . . . . . . . . . . Cave-ins Triggered 1 | . . . . . . . . . . . . . . . . . 1 . . . . . . . . . . . . . . Exploration Rate (%) 57 | 9 67 96 42 93 91 49 59 96 13 88 2 83 12 87 5 94 83 60 87 6 97 17 94 68 70 53 . 90 27 25 14 Regions Visited 31 Branch Regions 13 Pre-discovered Areas 7 | . . . 1 . 1 . . . . . . . . . . 1 . 3 . . . . 1 . . . . . . . . Known Exits Taken 10 | . . . 1 . . . 1 . 1 . 1 . 1 . 1 . . . . . . 1 . . . 1 1 . . 1 . Unknown Exits Taken 14 | 1 1 1 . 1 1 1 . . . . . . . . . 1 1 1 1 . . . 1 1 1 . . . 1 . . Scrap Searched 18 | . . 1 . 2 . . . . . . . . . . . 3 4 . 1 . . . 4 2 . 1 . . . . . Spaces Dug 177 | . . . 9 . . . 10 12 2 17 . . . 2 . . 31 . 22 . 2 25 1 . 15 . . . 1 3 25 Terrain Destroyed 1044 | . . . 9 . 185 41 24 35 2 135 . 2 1 7 . 18 65 . 152 38 6 49 9 40 116 1 . 16 9 7 77 Melee 16 | . . . 5 . . . 1 . 2 2 . . . 2 . . . . 4 . . . . . . . . . . . . Projectile 108 | . . . 4 . 7 1 1 . . 4 . 2 1 1 . 1 29 . 1 5 4 6 8 6 11 1 . . 8 4 3 AOE 862 | . . . . . 178 40 22 35 . 128 . . . 4 . 17 33 . 147 33 . 18 . 34 102 . . 16 . . 55 Terrain Rammed . | . . . . . . . . . . . . . . . . . . . . . . . . . . . . . . . . Walls Destroyed . | . . . . . . . . . . . . . . . . . . . . . . . . . . . . . . . . Machines Disabled . | . . . . . . . . . . . . . . . . . . . . . . . . . . . . . . . . Actions | -11 -10 -10 -9 -9 -9 -8 -8 -8 -7 -7 -7 -7 -6 -6 -5 -5 -5 -5 -4 -4 -4 -4 -4 -4 -4 -3 -3 -3 -2 -2 -1 --------- Run | Yrd Mat Min Mat Min Exi Min Mat Gar Fac Gar Fac DSF Fac Gar Fac Upp Upp Zhi Pro Fac Was Fac Upp Upp War Pro Res DSF Res Qua Acc Total 21615 | 339 546 565 655 511 1313 288 936 1251 519 1181 68 264 558 989 184 1354 1241 199 1037 362 853 995 919 1008 951 451 5 324 862 267 620 Wait 1237 | 54 28 12 146 15 321 2 44 10 5 19 . 13 33 12 13 53 8 . 28 6 75 81 15 26 78 8 2 23 35 25 47 Move 18139 | 248 447 542 433 475 830 237 771 1079 431 966 61 175 471 839 157 1251 1148 166 911 277 710 867 870 965 747 416 1 250 683 202 513 Hop . | . . . . . . . . . . . . . . . . . . . . . . . . . . . . . . . . Pick Up 178 | 6 11 5 15 3 16 6 12 8 6 5 1 17 8 10 . 3 1 2 4 8 5 5 1 . 6 . . 4 3 2 5 Fast Attach 193 | 7 . . 5 2 1 5 11 8 7 17 1 9 3 8 5 10 1 9 11 9 8 1 2 1 14 3 . 8 21 3 3 Attach 105 | . 1 . 2 . 14 3 4 11 2 6 . 7 5 8 . 1 1 2 7 3 1 2 1 1 3 . 2 . 3 4 11 Detach 29 | . . . 1 . . 2 1 4 . 5 . 1 1 . . . 1 1 4 1 . . . . 1 1 . . 1 . 4 Swap 292 | . 6 . 10 1 10 2 14 10 9 28 2 2 6 24 2 14 25 1 16 11 13 17 9 3 25 2 . 5 17 4 4 Drop 288 | . 6 5 12 6 14 . 19 4 13 14 3 16 5 16 3 13 3 9 3 16 17 8 5 2 22 3 . 14 31 4 2 Fire 942 | 24 46 . 21 8 104 28 55 61 29 95 . 24 23 51 4 8 52 . 30 30 24 14 16 10 32 18 . 19 67 21 28 Melee 124 | . . . 5 . . . 4 41 15 9 . . . 16 . 1 . 9 23 1 . . . . . . . . . . . Ram . | . . . . . . . . . . . . . . . . . . . . . . . . . . . . . . . . Kick 14 | . . . . . . 3 1 . 2 . . . 2 . . . . . . . . . . . . . . . 1 2 3 Crush 11 | . 1 1 5 1 . . . . . 3 . . . . . . . . . . . . . . . . . . . . . Escape Stasis 36 | . . . . . . . . 15 . 14 . . 1 5 . . 1 . . . . . . . . . . . . . . Rewire 24 | . . . . . . . . . . . . . . . . . . . . . . . . . 23 . . 1 . . . Trap 3 | . . . . . 3 . . . . . . . . . . . . . . . . . . . . . . . . . . Miscellaneous . | . . . . . . . . . . . . . . . . . . . . . . . . . . . . . . . . Route ------- -11/Scrapyard -10/Materials (discovered 2 exits: *Mat / [*Min]) -10/Mines (discovered 3 exits: *Mat x2 / [*Sub]) -9/Materials -9/Mines (discovered 3 exits: *Mat x2 / *Exi) -9/Exiles (discovered 2 exits: [*Min x2]) -8/Mines -8/Materials (discovered 2 exits: *Fac / Gar) -8/Garrison (discovered 3 exits: *Fac x3) -7/Factory (discovered 2 exits: *Sto / Gar) -7/Garrison (discovered 3 exits: *Fac x3) -7/Factory -7/DSF -6/Factory (discovered 3 exits: *Fac / [*Low] / Gar) -6/Garrison (discovered 3 exits: *Fac x3) -5/Factory (discovered 2 exits: *Upp x2) -5/Upper Caves -5/Upper Caves (discovered 2 exits: *Fac / *Zhi) -5/Zhirov -4/Proximity Caves -4/Factory (discovered 2 exits: Res / Upp) -4/Waste -4/Factory (discovered 3 exits: *Upp x2 / Arm) -4/Upper Caves -4/Upper Caves (discovered 2 exits: *Res / *War) -4/Warlord -3/Proximity Caves -3/Research (discovered 2 exits: Res / DSF) -3/DSF -2/Research -2/Quarantine -1/Access To Epsilon Eridani History --------- Turn | Location | Event 4 | -11/Scrapyard | Discovered new exit (range 15) 535 | -11/Scrapyard | Entered Materials 536 | -10/Materials | Build established: Mutant 963 | -10/Materials | Discovered new exit (range 10) 1364 | -10/Materials | Discovered new exit (range 6) 1441 | -10/Materials | Entered Mines 1516 | -10/Mines | Assisted by bots powering up and referring to "LRC-V3" 1543 | -10/Mines | Found a hidden stash of uninstalled traps 1592 | -10/Mines | Received a Rocket Launcher from a helpful Derelict 1699 | -10/Mines | Discovered new exit (range 9) 1765 | -10/Mines | Discovered new exit (range 13) 1768 | -10/Mines | Discovered new exit (range 11) 2330 | -10/Mines | Entered Materials 2330 | -9/Materials | Accompanied by 3 allies 2330 | -9/Materials | Evolved 2 slots: Utility x1, Weapon x1 2546 | -9/Materials | Identified exit to Mines 2555 | -9/Materials | Repaired Lgt. Treads 2640 | -9/Materials | Build established: Gunner 2857 | -9/Materials | Lost 3 allies 3555 | -9/Materials | Entered Mines 3626 | -9/Mines | Learned 2 Materials zone layouts 3638 | -9/Mines | Discovered new exit (range 11) 4147 | -9/Mines | Discovered new exit (range 7) 4592 | -9/Mines | Found a damaged Exp. Sensor Array with a note attached 4598 | -9/Mines | Found Prototype Device 4598 | -9/Mines | Identified Exp. Sensor Array 4706 | -9/Mines | Deemed a non-threat by the Exiles lab entrance 4708 | -9/Mines | Discovered new exit (range 5) 4749 | -9/Mines | Entered Exiles 4785 | -9/Exiles | Discovered new exit (range 15) 4845 | -9/Exiles | Met 8R-AWN 4884 | -9/Exiles | Met EX-HEX 4985 | -9/Exiles | Met EX-DEC 4999 | -9/Exiles | Learned location of Zion (-6) 5096 | -9/Exiles | Visited The Gauntlet 5429 | -9/Exiles | Met EX-BIN 5712 | -9/Exiles | Discovered new exit (range 10) 6019 | -9/Exiles | Aligned with FarCom system 6021 | -9/Exiles | Given EX-Vault access code 6057 | -9/Exiles | Opened EX-Vault 6073 | -9/Exiles | Found YOLO Cannon 6106 | -9/Exiles | Warned to stay clear of 0b10 Research branches 6127 | -9/Exiles | Exiles lab attacked by MAIN.C 6273 | -9/Exiles | Warned about trapping Exiles lab 6280 | -9/Exiles | Attacked by the Exiles 6389 | -9/Exiles | Destroyed 8R-AWN 6407 | -9/Exiles | Lost 5 parts (2p2n1w) 6416 | -9/Exiles | Found Prototype Ballistic Gun 6417 | -9/Exiles | Identified 8R-AWN's Boregun 7059 | -9/Exiles | Destroyed 18 combat bots 7071 | -9/Exiles | Lost 5 parts (1p2n1u1w) 7244 | -9/Exiles | Entered Mines 7246 | -8/Mines | Core integrity fell below 50% 7283 | -8/Mines | Lost 4 parts (1p1u2w) 7588 | -8/Mines | Discovered new exit (range 15) 7637 | -8/Mines | Entered Materials 7637 | -8/Materials | Evolved 2 slots: Propulsion x2 7849 | -8/Materials | Repaired Gauss Rifle 7889 | -8/Materials | Repaired Hrd. Medium Armor Plating? 8285 | -8/Materials | Discovered new exit (range 4) 8409 | -8/Materials | Build established: Scavenger-Tank 9335 | -8/Materials | Identified exit to Garrison 9335 | -8/Materials | Entered Garrison 9352 | -8/Garrison | Build established: Tank 9403 | -8/Garrison | Triggered checkpoint 9458 | -8/Garrison | Garrison Relay disabled 9537 | -8/Garrison | Triggered checkpoint 9585 | -8/Garrison | Destroyed 8 combat bots 9652 | -8/Garrison | Discovered new exit (range 12) 9675 | -8/Garrison | Triggered checkpoint 9919 | -8/Garrison | Met a derelict Sapper fleeing the area 9923 | -8/Garrison | Phase Generator disabled 9967 | -8/Garrison | Discovered new exit (range 12) 10105 | -8/Garrison | Triggered checkpoint 10184 | -8/Garrison | Lost 5 parts (2n1u2w) 10354 | -8/Garrison | Core integrity fell below 50% 10363 | -8/Garrison | Triggered checkpoint 10379 | -8/Garrison | Lost 3 parts (1p1n1w) 10420 | -8/Garrison | Triggered checkpoint 10518 | -8/Garrison | Discovered new exit (range 12) 10521 | -8/Garrison | Triggered checkpoint 10624 | -8/Garrison | Garrison Relay disabled 10682 | -8/Garrison | Build established: Scavenger-Mutant 11052 | -8/Garrison | Garrison Relay disabled 11162 | -8/Garrison | Garrison Relay disabled 11199 | -8/Garrison | Entered Factory 11199 | -7/Factory | Evolved 2 slots: Utility x2 11200 | -7/Factory | Identified exit to Storage 11795 | -7/Factory | Garrison activated, responded to threat 11854 | -7/Factory | Identified exit to Garrison 11854 | -7/Factory | Entered Garrison 11864 | -7/Garrison | Triggered checkpoint 11943 | -7/Garrison | Garrison Relay disabled 12049 | -7/Garrison | Heavy support dispatched to Factory 12177 | -7/Garrison | Phase Generator disabled 12261 | -7/Garrison | Triggered checkpoint 12296 | -7/Garrison | Destroyed 7 combat bots 12302 | -7/Garrison | Lost 5 parts (1p2n1u1w) 12334 | -7/Garrison | Triggered checkpoint 12385 | -7/Garrison | Core integrity fell below 50% 12430 | -7/Garrison | Lost 4 parts (1n1u2w) 12572 | -7/Garrison | Discovered new exit (range 15) 12695 | -7/Garrison | Build established: Scavenger-Gunner 12728 | -7/Garrison | Spotted B-75 Beast 12728 | -7/Garrison | Spotted B-75 Beast 12798 | -7/Garrison | Triggered checkpoint 12830 | -7/Garrison | Destroyed 7 combat bots 12953 | -7/Garrison | Triggered checkpoint 12985 | -7/Garrison | Garrison Relay disabled 13145 | -7/Garrison | Discovered new exit (range 10) 13276 | -7/Garrison | Triggered checkpoint 13300 | -7/Garrison | Build established: Scavenger-Mutant 13382 | -7/Garrison | Triggered checkpoint 13434 | -7/Garrison | Garrison Relay disabled 13537 | -7/Garrison | Discovered new exit (range 15) 13772 | -7/Garrison | Build established: Scavenger-Tank 13874 | -7/Garrison | Triggered checkpoint 14011 | -7/Garrison | Garrison Relay disabled 14034 | -7/Garrison | Garrison Relay disabled 14101 | -7/Garrison | System corruption reached 10% 14101 | -7/Garrison | Attempted to access garrison exit controls, blocked by remote lockdown 14178 | -7/Garrison | Triggered checkpoint 14276 | -7/Garrison | Entered Factory 14379 | -7/Factory | Identified exit to DSF 14381 | -7/Factory | Entered DSF 14425 | -7/DSF | Additional patrols routed to DSF 14479 | -7/DSF | Lost 4 parts (1p1n2u) 14639 | -7/DSF | Build established: Scavenger-Gunner 14664 | -7/DSF | Discovered new exit (range 16) 14718 | -7/DSF | Core integrity fell below 20% 14751 | -7/DSF | Sterilization system engaged 14771 | -7/DSF | Ambient heat levels rising (+10) 14786 | -7/DSF | Ambient heat levels rising (+10) 14800 | -7/DSF | Entered Factory 14800 | -6/Factory | Evolved 2 slots: Propulsion x1, Utility x1 14931 | -6/Factory | Fabricated Adv. Myomer Leg (x1) 15084 | -6/Factory | Fabricated Exp. Sensor Array (x1) 15179 | -6/Factory | Fabricated Adv. Myomer Leg (x1) 15282 | -6/Factory | Fabricated Adv. Myomer Leg (x1) 15572 | -6/Factory | Discovered new exit (range 14) 15672 | -6/Factory | Discovered new exit (range 14) 15685 | -6/Factory | Identified exit to Garrison 15685 | -6/Factory | Entered Garrison 15723 | -6/Garrison | Triggered checkpoint 15750 | -6/Garrison | Garrison Relay disabled 15861 | -6/Garrison | Triggered checkpoint 15934 | -6/Garrison | Lost 4 parts (2n2u) 15968 | -6/Garrison | Destroyed 14 combat bots 16030 | -6/Garrison | Discovered new exit (range 13) 16079 | -6/Garrison | Triggered checkpoint 16093 | -6/Garrison | Garrison Relay disabled 16131 | -6/Garrison | Garrison Relay disabled 16295 | -6/Garrison | Triggered checkpoint 16309 | -6/Garrison | Garrison Relay disabled 16336 | -6/Garrison | Discovered new exit (range 10) 16451 | -6/Garrison | Triggered checkpoint 16556 | -6/Garrison | Garrison Relay disabled 16577 | -6/Garrison | Discovered new exit (range 14) 16947 | -6/Garrison | Entered Factory 16947 | -5/Factory | Evolved 2 slots: Power x1, Utility x1 16984 | -5/Factory | Identified exit to Upper Caves 17100 | -5/Factory | Fabricated Y-64 Sentinel? 17171 | -5/Factory | Entered Upper Caves 17171 | -5/Upper Caves | Accompanied by 2 allies 17178 | -5/Upper Caves | Met a Warlord Commander 17179 | -5/Upper Caves | Learned location of Warlord (-4) 17180 | -5/Upper Caves | Warlord Commander delivered Encrypted Comm Array 17185 | -5/Upper Caves | Found Encrypted Comm Array 18010 | -5/Upper Caves | Found Alien Artifact 18164 | -5/Upper Caves | Identified Dimensional Node Initializer 18164 | -5/Upper Caves | Initialized slip node 18305 | -5/Upper Caves | Learned Extension garrison access intel 18305 | -5/Upper Caves | Learned location of 1 exit from Research 18404 | -5/Upper Caves | Learned location of 1 exit from Factory 18560 | -5/Upper Caves | Discovered new exit (range 16) 18793 | -5/Upper Caves | Entered another Upper Caves area 18793 | -5/Upper Caves | Accompanied by 2 allies 18958 | -5/Upper Caves | Discovered new exit (range 4) 19392 | -5/Upper Caves | Discovered new exit (range 6) 20030 | -5/Upper Caves | Build established: Scavenger-Mutant 20075 | -5/Upper Caves | Attracted the attention of an 0b10 checkpoint 20254 | -5/Upper Caves | Found Prototype Special Weapon 20254 | -5/Upper Caves | Identified Mak. Laser Shovel 20265 | -5/Upper Caves | Crushed by falling debris 20312 | -5/Upper Caves | Entered Zhirov 20315 | -5/Zhirov | Discovered new exit (range 3) 20336 | -5/Zhirov | Met Zhirov 20358 | -5/Zhirov | Learned location of Quarantine (-2) 20358 | -5/Zhirov | Learned location of Testing (-3) 20358 | -5/Zhirov | Learned location of Command (-1) 20368 | -5/Zhirov | Zhirov requested help retrieving the SGEMP Prototype 20391 | -5/Zhirov | Found Alien Artifact 20391 | -5/Zhirov | Identified Integrated Dissipator 20391 | -5/Zhirov | Installed Integrated Dissipator, increased core heat dissipation (+20) 20502 | -5/Zhirov | Found Alien Artifact 20556 | -5/Zhirov | Entered Proximity Caves 21048 | -4/Proximity Caves | Attracted the attention of an 0b10 base 21109 | -4/Proximity Caves | Lost 4 parts (1n2u1w) 21159 | -4/Proximity Caves | Lost 3 parts (1p1n1w) 21234 | -4/Proximity Caves | Learned Factory terminal intel 21234 | -4/Proximity Caves | Learned Factory emergency access door positions 21234 | -4/Proximity Caves | Learned 6 Upper Caves zone layouts 21300 | -4/Proximity Caves | Learned Research stockpile data 21321 | -4/Proximity Caves | Attracted the attention of an 0b10 checkpoint 21875 | -4/Proximity Caves | Discovered new exit (range 6) 21885 | -4/Proximity Caves | System corruption reached 10% 21886 | -4/Proximity Caves | Entered Factory 21886 | -4/Factory | Evolved 2 slots: Utility x1, Weapon x1 21887 | -4/Factory | Identified exit to Upper Caves 21888 | -4/Factory | Identified exit to Research 21890 | -4/Factory | Loaded intel: 25 terminal locations 21939 | -4/Factory | Repaired Imp. Medium Armor Plating? 22085 | -4/Factory | Build established: Scavenger-Gunner 22360 | -4/Factory | Sucked down chute 22360 | -4/Factory | Entered Waste 22361 | -4/Waste | Met a frightened Derelict 22385 | -4/Waste | Found Prototype Device 22385 | -4/Waste | Identified Adv. Kinecellerator 22407 | -4/Waste | Spotted C-40 Crusher 22423 | -4/Waste | Destroyed C-40 Crusher 22433 | -4/Waste | Spotted C-40 Crusher 22495 | -4/Waste | Destroyed C-40 Crusher 22535 | -4/Waste | Spotted C-40 Crusher 22571 | -4/Waste | Spotted C-40 Crusher 22572 | -4/Waste | Destroyed C-40 Crusher 22577 | -4/Waste | Destroyed C-40 Crusher 22583 | -4/Waste | Spotted C-40 Crusher 22587 | -4/Waste | Destroyed C-40 Crusher 22645 | -4/Waste | Spotted C-40 Crusher 22650 | -4/Waste | Destroyed C-40 Crusher 22783 | -4/Waste | Discovered new exit (range 16) 22812 | -4/Waste | Found Prototype Launcher 22812 | -4/Waste | Identified Point Singularity Launcher 23093 | -4/Waste | Warlord forces began an assault 23399 | -4/Waste | Entered Factory 23399 | -4/Factory | Accompanied by 18 allies 23414 | -4/Factory | Garrison activated, responded to threat 23455 | -4/Factory | Lost 7 allies 23465 | -4/Factory | Identified exit to Armory 24096 | -4/Factory | Fabricated Assault Drone Bay? 24134 | -4/Factory | Lost 3 allies 24277 | -4/Factory | Lost 3 allies 24409 | -4/Factory | Fabricated Point Singularity Launcher? 24598 | -4/Factory | Entered Upper Caves 24598 | -4/Upper Caves | Accompanied by 2 allies 25095 | -4/Upper Caves | Learned 4 Research zone layouts 25479 | -4/Upper Caves | Learned location of Armory (-4) 25649 | -4/Upper Caves | Discovered new exit (range 4) 25724 | -4/Upper Caves | Entered another Upper Caves area 25741 | -4/Upper Caves | Discovered exit to Research (range 6) 26571 | -4/Upper Caves | Spotted B-86 Titan 26829 | -4/Upper Caves | Discovered new exit (range 14) 26870 | -4/Upper Caves | Encountered a Warlord checkpoint 26938 | -4/Upper Caves | Entered Warlord 27478 | -4/Warlord | Found Prototype Device 27478 | -4/Warlord | Identified System Purifier 27509 | -4/Warlord | Found Prototype Reactor 27542 | -4/Warlord | Met Warlord 27559 | -4/Warlord | Warlord's base attacked by MAIN.C 27768 | -4/Warlord | Destroyed 7 combat bots 27770 | -4/Warlord | Build established: Commander-Gunner 27846 | -4/Warlord | Lost 3 allies 27849 | -4/Warlord | Warlord forces counterattacked 27881 | -4/Warlord | Spotted Striker 27919 | -4/Warlord | Spotted Executioner 27920 | -4/Warlord | Destroyed Executioner 27930 | -4/Warlord | Lost 5 allies 27948 | -4/Warlord | Destroyed 12 combat bots 27965 | -4/Warlord | Spotted Striker 27965 | -4/Warlord | Spotted Executioner 27965 | -4/Warlord | Spotted Executioner 28001 | -4/Warlord | Destroyed Executioner 28024 | -4/Warlord | Lost 9 allies 28031 | -4/Warlord | Lost 6 parts (1p1n3u1w) 28036 | -4/Warlord | Found Prototype Processor 28036 | -4/Warlord | Identified Exp. Core Analyzer 28058 | -4/Warlord | Discovered new exit (range 13) 28061 | -4/Warlord | Spotted Striker 28071 | -4/Warlord | Entered Proximity Caves 28135 | -3/Proximity Caves | Attracted the attention of an 0b10 checkpoint 28163 | -3/Proximity Caves | Destroyed 8 combat bots 28278 | -3/Proximity Caves | Acquired the password to a Derelict Tinkerer's latest research 28306 | -3/Proximity Caves | Build established: Scavenger-Gunner 28507 | -3/Proximity Caves | Discovered exit to Research (range 13) 28592 | -3/Proximity Caves | Entered Research 28592 | -3/Research | Evolved 2 slots: Propulsion x1, Utility x1 28593 | -3/Research | Identified exit to Research 28598 | -3/Research | Identified exit to DSF 28598 | -3/Research | Entered DSF 28639 | -3/DSF | Additional patrols routed to DSF 28805 | -3/DSF | Discovered exit to Research (range 15) 28953 | -3/DSF | Sterilization system engaged 28973 | -3/DSF | Ambient heat levels rising (+10) 28975 | -3/DSF | Entered Research 28975 | -2/Research | Warlord forces began assault on 0b10 28975 | -2/Research | Evolved 2 slots: Utility x2 29000 | -2/Research | Distinguished unit "Golden Rifle" dispatched to help 29000 | -2/Research | Distinguished unit "Knights of the Pentagonal Table" dispatched to help 29085 | -2/Research | Research machine network offline 29138 | -2/Research | Met up with Warlord 29287 | -2/Research | Spotted Executioner 29289 | -2/Research | Spotted Executioner 29299 | -2/Research | Spotted B-90 Cyclops 29312 | -2/Research | Destroyed B-90 Cyclops 29337 | -2/Research | Lost 3 allies 29341 | -2/Research | Found Unknown Protection 29341 | -2/Research | Identified Hvy. Reflective Plating 29351 | -2/Research | Found Exp. Core Analyzer 29428 | -2/Research | Spotted Executioner 29433 | -2/Research | Spotted Striker 29435 | -2/Research | Destroyed Executioner 29438 | -2/Research | Spotted Executioner 29442 | -2/Research | Destroyed Executioner 29465 | -2/Research | Lost 3 allies 29465 | -2/Research | Found Prototype Processor 29465 | -2/Research | Identified Exp. Targeting Computer 29547 | -2/Research | Borebot progress halted 29591 | -2/Research | Spotted Executioner 29593 | -2/Research | Spotted Executioner 29597 | -2/Research | Destroyed Executioner 29600 | -2/Research | Destroyed Executioner 29623 | -2/Research | Spotted Striker 29629 | -2/Research | Destroyed Striker 29633 | -2/Research | Spotted Executioner 29635 | -2/Research | Spotted B-90 Cyclops 29654 | -2/Research | Destroyed B-90 Cyclops 29669 | -2/Research | Borebot progress halted 29670 | -2/Research | Spotted Executioner 29677 | -2/Research | Spotted Striker 29682 | -2/Research | Spotted Striker 29682 | -2/Research | Spotted Striker 29690 | -2/Research | P-80 Master assimilated allied 48-2LF(i) 29700 | -2/Research | Destroyed Striker 29702 | -2/Research | Destroyed Striker 29737 | -2/Research | Spotted Striker 29747 | -2/Research | Destroyed Striker 29761 | -2/Research | Lost 27 allies 29772 | -2/Research | Spotted Striker 29778 | -2/Research | Destroyed 7 combat bots 29813 | -2/Research | Found Prototype Launcher 29813 | -2/Research | Identified Com. Tesla Bomb Launcher 29818 | -2/Research | Borebot progress halted 29885 | -2/Research | Spotted Striker 29887 | -2/Research | Spotted Striker 29907 | -2/Research | Destroyed Striker 29911 | -2/Research | Destroyed Striker 29941 | -2/Research | Attacked by Warlord forces 29944 | -2/Research | Spotted TI-6T0(H) 29960 | -2/Research | Allies destroyed Striker 29984 | -2/Research | Spotted Striker 29989 | -2/Research | Spotted Striker 29991 | -2/Research | Found Prototype Launcher 29996 | -2/Research | Discovered new exit (range 6) 30001 | -2/Research | Entered Quarantine 30042 | -2/Quarantine | Found Alien Artifact 30042 | -2/Quarantine | Identified Phase Redirector 30238 | -2/Quarantine | Cryocooling Duct disabled 30253 | -2/Quarantine | Ambient heat levels rising (+20) 30253 | -2/Quarantine | Non-combat units ordered to evacuate 30318 | -2/Quarantine | Discovered new exit (range 6) 30324 | -2/Quarantine | Found Alien Artifact 30330 | -2/Quarantine | Identified exit to Access 30331 | -2/Quarantine | Entered Access 30331 | -1/Access | Evolved 2 slots: Power x1, Utility x1 30529 | -1/Access | Identified Vortex Chain Reactor 30712 | -1/Access | Lost 9 parts (3n3u3w) 30966 | -1/Access | Build established: Scavenger-Skirmisher 31200 | -1/Access | Discovered new exit (range 3) 31204 | -1/Access | Identified exit to Surface 31206 | *** | Escaped! Last Messages --------------- 31137_ Mak. Laser Shovel disintegrates Wall. 31138_ Slug penetrates Wall. 31140_ Wall collapses. 31143_ Slug penetrates Door. 31143_ Penetrated by Slug. 31151_ Connecting with Terminal... 31158_ System corrupted: Matter fused (-7). 31171_ Mak. Laser Shovel disintegrates Wall. 31176_ Penetrated by Slug. 31190_ Mak. Laser Shovel disintegrates Wall. 31190_ Penetrated by Slug. 31190_ Assault Drone Bay destroyed. 31192_ Mak. Laser Shovel disintegrates Earth. 31193_ Mak. Laser Shovel disintegrates Reinforced Barrier. 31197_ ALERT: Suspicious intruders detected, dispatching Specialist reinforcements to area. 31199_ Mak. Laser Shovel disintegrates Main Access Shell. 31200_ EXIT=FOUND 31202_ Penetrated by Slug. 31204_ EXIT=IDENTIFIED: SURFACE Map ----- +----------------------------------------------------+ | ?????????????????????????????????????????????????? | | ?????????????????????????????????????????????????? | | ?????????????????????????????????????????????????? | | ?????????????????????????????????????????????????? | | ?????????????????????????????????????????????????? | | ?????????????????????????????????????????????????? | | ??????????????????????????#??????????????????????? | | ?????????????????????##??????????????????????????? | | ?????????????????????????????????????????????????? | | ?????????????????#??#?????????#??????#?#?????????? | | ??????????????? ???????????##??????##????????????? | | ??????????????? ??? ?????? ?????? ?? ? ????????? | | ????????????????? ??u ????? ???????? "T??????? | | ???????????????????????? ?????"#?##?#?#?? ???????? | | ???????????#?????#??#??????? ??##???#??????#?????? | | ?????????????????????????????""#??#??#? ?? ????? | | ?????????????????##?#?? ????? ??##???##?? ????? | | ????????????? ??#??#? ????????"####?#?? ?????? ??? | | ??????????#?????????? ? ? ??"?###??#?? ??????? | | ????????????????#?#????? "???#?###?? ??? ? ??? | | ?????????????? ??#??????"?""""""??????#?""?"?????? | | ????????????????????#?? ?? ##??#?#?"???"? ???? | | ?????????????H???##????????? #?####????"?"" ??? | | ???????????? ???????? ?"""""" ####??#???"?" ??? | | ????????????? ??#??#?? " " ##??###? ?" ? ? ? | | ???????????????#????? ?" @" #?##??## ?? ???? | | ???????????? ?#?#?#?? ?" "" " ###?##?#????? ??? | | ??????????????#?????#??" " #################?? | | ????????#???????#?#?# ?"""""" "## ###??? | | ????????????? ???##?? ? # # ###??? | | ????????? ????????##??"""""""""##" #???#? | | ??????????????#?#??##"?"""?"?""?## ##?#?? | | ?????????????????#???"?"?""""?"### #?#### | | ????????? ? ???#?##?#""??"?"?""??# / ? ? | | ?????????? ????###?## ? ### # ? | | ??????????? ???#??##? ? ?? B?### # ###? | | ????????????????###?# ? BB ### # ##?# | | ???????????????#?####? ? #?# u # ##?? | | ????????????????##### ? ? ?## # #### | | ?????????????#??##### ?## # #?#? | | ??????????????#?#??## ? ? ##############+##?# | | ?????????????#?##???##?? ######"#######? ?? ? | | ?????????????#??##??#### # ! # | | ????????????#??##?###### ?? # # "" | | ?????????????#?#? ? # # "" | | ???????????????#?? ? # """"" # ? "" | | ??????????????### ? ? + """"" # ? T | | ????????????????????? # """"" # ? ?"" | | ??????????????#??? ! # """"" #? ? "" | | ???????????#??#?#? ???? # """"" ! #? ? ?? | +----------------------------------------------------+ Best States ------------- Heat Dissipation 136 Energy Generation 75 Energy Capacity 950 Matter Stores 300 Matter Capacity 300 Sight Range 16 Robot Scan Range 20 Terrain Scan Range 20 Terrain Scan Density 210 Jamming Range 16 Power Amplification 30 Base Temperature (-) 200 Armor Coverage 1200 Resistance: KI 25 Resistance: TH 30 Weapon Cycling 25 Phase Shifting 15 Evasion (%) 84 Targeting Accuracy 13 Target Analysis 6 Core Analysis 12 Recoil Reduction 4 Matter Filtering 30 Kinecelleration 50 Offensive Hacking 14 Authchip Count 4 Item Schematics ----------------- Hcp. Storage Unit | -9/Mines | Hacked Exp. Sensor Array | -8/Materials | Scanalyzed Adv. Myomer Leg | -7/Factory | Scanalyzed Assault Drone Bay | -5/Zhirov | Free Exp. Heat Sink | -5/Zhirov | Free Exp. Optical Array | -5/Zhirov | Free Imp. Arc Thrower | -5/Zhirov | Free Biometal Heavy Treads | -4/Factory | Hacked Point Singularity Launcher | -4/Factory | Scanalyzed Robot Schematics ------------------ None Fabricated ------------ Adv. Myomer Leg | x1 | -6/Factory | Authchip Exp. Sensor Array | x1 | -6/Factory | Authchip Adv. Myomer Leg | x1 | -6/Factory | Authchip Adv. Myomer Leg | x1 | -6/Factory | Authchip Y-64 Sentinel | x2 | -5/Factory | Preloaded Assault Drone Bay | x1 | -4/Factory | Authchip Point Singularity Launcher | x1 | -4/Factory Repaired ---------- Lgt. Treads | 40% | -9/Materials Gauss Rifle | 1% | -8/Materials Hrd. Medium Armor Plating | 35% | -8/Materials Imp. Medium Armor Plating | 60% | -4/Factory Studied --------- Com. HERF Cannon | -4/Factory | Hacked Alien Tech Used ----------------- Dimensional Node Initializer Integrated Dissipator Phase Redirector Achievements -------------- Botjacking Who Guards The Bodyguard? Challenges ------------ None Game ------ Seed CoreDeliveryTether Manual? 0 Play Time 05:00:41 Cumulative 619.2 hours Start 2026.01.03 @ 12:22:51 End 2026.01.03 @ 20:46:17 Sessions 7 Manual Loads 0 Difficulty Rogue Special Mode None Game No. 347 Rogue 322 Adventurer 7 Explorer 18 Win Type 0 Total 51 Types 32/1/8/2/1/1/1/3/0/2 Lore% 95 Gallery% 89 Achievement% 62 Wizard Run 0 Options --------- Layout 0 ASCII 0 Keyboard 0 Movement Numpad Keybinds 0 Fullscreen 1 Font 12/Smallcaps Map View 83x54 Zoom Use 0% Tactical HUD 1 Map Filters NONE Filters NONE Steam 1 RUN: 252852fb-7af0-4b6b-a15a-2034a0ab1163